Cogmind - Beta 15 @@@ ROGUE MODE // 2025.08.05 @ 20:40:18 Player: C0-2MO Result: Establishing Free Derelict Territories! Performance ------------- Evolutions (9) 4500 Regions Visited (32) 6400 Robots Destroyed (191) 955 Value Destroyed (11794) 11794 Prototype IDs (116) 2320 Alien Tech Used (3) 600 Bonus (38276) 38276 TOTAL SCORE: 64845 Bonus ------- High Alert Combat Kills 898 Follower Combat Kills 3580 Entered Garrisons 1000 Entered DSFs 500 Acquired ECA 300 Met Warlord at Base 500 MAIN.C Attacked Warlord 500 Warlord Defense Kills 220 Built Enhanced Grunts 300 A7 Reached Mainframe 300 Met R17 at Cetus 500 Met Warlord at Research 2000 Invited to Help at Command 2000 Destroyed MAIN.C Guards 500 Met MAIN.C 5000 Hacked MAIN.C 300 Destroyed MAIN.C Shell 5000 Destroyed MAIN.C 10000 Met Warlord at Command 2000 Win 3000 Friendly Fire -122 Cogmind --------- Core Integrity 1278/1600 Matter 300/300 Energy 215/2320 System Corruption 0% Temperature Cool (7) Movement Flying (20) Location Free Derelict Territories Parts ------- > --- POWER (2) -------- Hybrid Graviton Reactor Concept Zero-point Core > --- PROPULSION (10) -- Nuclear Pulse Array Electron Diverter Cooled Impulse Thruster Impulse Thruster Array Impulse Thruster Array Improved Q-thruster Cooled Q-thruster > --- UTILITY (11) ----- Advanced Power Amplifier Advanced Heat Sink 2N-1CE's Frost Array Large Storage Unit Concept Chromion Battery Structural Scanner Long-range Sensor Array Concept Networked Targeting System Graphene Brace Experimental Remote Shield Advanced Corruption Screen > --- WEAPON (2) ------- Core Cannon > --- INVENTORY (15) --- Light Antimatter Reactor Light Quantum Reactor Light Quantum Reactor Experimental Antimatter Reactor Electron Diverter Experimental Shock Absorption System Advanced Point Defense System Advanced Point Defense System Experimental System Purifier Enhanced Nova Cannon Advanced Remote Datajack Advanced Remote Datajack Peak State ------------ > --- POWER ------------ Hybrid Graviton Reactor Concept Zero-point Core > --- PROPULSION ------- Nuclear Pulse Array Electron Diverter Electron Diverter Electron Diverter Cooled Impulse Thruster Impulse Thruster Array Improved Q-thruster Cooled Q-thruster > --- UTILITY ---------- Advanced Power Amplifier 2N-1CE's Frost Array Large Storage Unit Concept Networked Targeting System Reaction Control System Graphene Brace Experimental Shock Absorption System Experimental Remote Shield Advanced Point Defense System Advanced Point Defense System Advanced Corruption Screen > --- WEAPON ----------- Core Cannon > --- INVENTORY -------- Light Antimatter Reactor Light Quantum Reactor Light Quantum Reactor Experimental Antimatter Reactor Impulse Thruster Array Concept Chromion Battery Structural Scanner Long-range Sensor Array Experimental System Purifier Enhanced Nova Cannon Advanced Remote Datajack [Rating: 229] Favorites ----------- Power Light Quantum Reactor Engine Improved Deuterium Engine Power Core Light Nuclear Core Reactor Light Quantum Reactor Propulsion Electron Diverter Treads Light Treads Leg Improved Thunder Leg Flight Unit Electron Diverter Utility Hacking Suite Device Structural Scanner Storage Large Storage Unit Processor Improved Signal Interpreter Hackware Hacking Suite Protection Centrium Medium Armor Plating Weapon Ripper Energy Gun Advanced Beam Rifle Energy Cannon Core Cannon Ballistic Gun Hypervelocity Railgun Ballistic Cannon Heavy Linear Accelerator Launcher Mini Grenade Launcher Special Weapon Improved Remote Datajack Impact Weapon Great Maul Slashing Weapon Ripper Piercing Weapon Spear Special Melee Weapon Advanced Datajack Build | -11 -10 -10 -9 -9 -9 -9 -7 -7 -6 -6 -6 -6 -6 -6 -5 -5 -5 -5 -4 -4 -4 -4 -4 -3 -3 -3 -3 -2 -2 -2 -1 -1 ------- Run | Yrd Mat Min Mat Sto Gar Rec Fac Gar Fac Ext Cet Arc Hub Gar Fac Upp Upp War Pro Fac Gar Fac DSF Res Gar Res Tes Res Qua Frg Acc Com Slots Evolved 18 | . . . 2 . . . 4 . 2 . . . . . 2 . . . . 2 . . . 2 . . . 2 . . 2 . Power 1 | . . . . . . . . . . . . . . . 1 . . . . . . . . . . . . . . . . . Propulsion 8 | . . . 1 . . . 2 . 1 . . . . . 1 . . . . 1 . . . 1 . . . 1 . . . . Utility 9 | . . . 1 . . . 2 . 1 . . . . . . . . . . 1 . . . 1 . . . 1 . . 2 . Weapon . | . . . . . . . . . . . . . . . . . . . . . . . . . . . . . . . . . Parts Attached 363 | 4 8 2 11 3 8 2 8 28 17 19 6 7 . 22 17 3 . 9 . 7 4 3 17 45 2 1 19 36 4 16 23 12 Power 47 | . . . 2 . 2 . 2 2 1 3 . . . 2 1 . . 1 . . . 2 2 6 . . 2 12 . 5 2 . Engine 12 | . . . 2 . 1 . 1 1 1 2 . . . . 1 . . . . . . 2 . 1 . . . . . . . . Core 8 | . . . . . 1 . 1 1 . 1 . . . 2 . . . . . . . . 1 . . . . . . 1 . . Reactor 27 | . . . . . . . . . . . . . . . . . . 1 . . . . 1 5 . . 2 12 . 4 2 . Propulsion 113 | 2 5 . 2 3 1 . 2 14 3 9 2 1 . 9 8 . . 2 . 1 2 . 11 17 . . 6 3 2 . 6 2 Treads 5 | 2 . . . . . . . 3 . . . . . . . . . . . . . . . . . . . . . . . . Leg 15 | . . . . . . . . 5 . 6 2 1 . 1 . . . . . . . . . . . . . . . . . . Wheel . | . . . . . . . . . . . . . . . . . . . . . . . . . . . . . . . . . Hover . | . . . . . . . . . . . . . . . . . . . . . . . . . . . . . . . . . Flight 93 | . 5 . 2 3 1 . 2 6 3 3 . . . 8 8 . . 2 . 1 2 . 11 17 . . 6 3 2 . 6 2 Utility 132 | . 2 . 2 . 2 2 2 6 10 2 2 5 . 6 6 2 . 4 . 5 2 1 . 17 2 1 8 15 . 10 9 9 Device 71 | . . . 1 . 2 . 1 . 4 . . 1 . 2 3 2 . 2 . 2 2 . . 9 2 1 5 9 . 10 6 7 Storage 10 | . . . . . . . . . . 1 . . . 1 . . . . . . . 1 . 3 . . 1 2 . . . 1 Processor 17 | . 1 . . . . . 1 . 2 . . . . . 2 . . 1 . 1 . . . 1 . . 2 3 . . 3 . Hackware 25 | . 1 . 1 . . 2 . 3 3 1 . 3 . 2 1 . . 1 . 2 . . . 3 . . . 1 . . . 1 Protection 9 | . . . . . . . . 3 1 . 2 1 . 1 . . . . . . . . . 1 . . . . . . . . Artifact . | . . . . . . . . . . . . . . . . . . . . . . . . . . . . . . . . . Weapon 71 | 2 1 2 5 . 3 . 2 6 3 5 2 1 . 5 2 1 . 2 . 1 . . 4 5 . . 3 6 2 1 6 1 Energy Gun 8 | . . 1 3 . . . . . . . . . . . . . . 1 . . . . . . . . 1 . . . 2 . Energy Cannon 4 | . . . . . . . . . . . . . . . . . . . . . . . . . . . 1 1 . 1 1 . Ballistic Gun 23 | 2 . . . . 2 . . 4 1 3 2 . . 4 2 . . . . . . . . 2 . . . . . . 1 . Ballistic Cannon 9 | . . . . . . . . 2 . . . . . 1 . . . . . . . . 4 . . . . . 1 . 1 . Launcher 6 | . 1 . 1 . 1 . . . . . . . . . . . . 1 . . . . . . . . 1 1 . . . . Special Weapon 4 | . . 1 . . . . . . . . . . . . . 1 . . . 1 . . . . . . . . . . . 1 Impact Weapon 1 | . . . . . . . . . . 1 . . . . . . . . . . . . . . . . . . . . . . Slashing Weapon 10 | . . . 1 . . . 2 . 1 1 . . . . . . . . . . . . . 2 . . . 1 1 . 1 . Piercing Weapon 4 | . . . . . . . . . 1 . . . . . . . . . . . . . . 1 . . . 2 . . . . Special Melee Weapon 2 | . . . . . . . . . . . . 1 . . . . . . . . . . . . . . . 1 . . . . Unidentified Prototypes 55 | . . . 2 1 . . . . . . 2 . . 1 3 . . 6 . 1 . . . 3 . . 11 12 4 9 . . Corrupted Parts 1 | . . . . . . 1 . . . . . . . . . . . . . . . . . . . . . . . . . . System Corruption 3 | . . . . . . 3 . . . . . . . . . . . . . . . . . . . . . . . . . . Parts Lost 111 | . 2 . 2 . 5 . . 15 5 8 . . . 19 3 . . . . . 4 . 17 7 2 5 1 4 . 8 . 4 Power 16 | . . . 1 . 2 . . 2 1 . . . . 2 . . . . . . 1 . 4 . . 1 . 2 . . . . Propulsion 49 | . 2 . . . 1 . . 9 1 6 . . . 10 2 . . . . . 2 . 8 2 . 1 . . . 3 . 2 Utility 30 | . . . . . 2 . . 3 3 1 . . . 4 1 . . . . . 1 . 3 2 2 2 . 1 . 4 . 1 Weapon 16 | . . . 1 . . . . 1 . 1 . . . 3 . . . . . . . . 2 3 . 1 1 1 . 1 . 1 Highest Loss Streak 12 | . 1 . 1 . 1 . . 8 2 5 . . . 12 2 . . . . . 2 . 7 7 2 3 1 1 . 5 . 4 To Critical Strikes . | . . . . . . . . . . . . . . . . . . . . . . . . . . . . . . . . . Average Backups 8 | . 3 5 4 5 4 5 4 4 4 4 7 18 20 15 4 5 5 4 5 4 4 3 4 7 13 12 14 14 14 12 13 12 Power . | . 1 1 . . . . . 1 . . 1 1 2 1 . . . . . . . . . . 1 1 1 1 2 2 4 4 Propulsion 1 | . 1 1 1 2 1 2 . . 2 2 1 3 4 5 . . . . . . 1 . 2 2 5 5 3 2 2 1 . . Utility 2 | . . 1 1 2 1 1 2 2 . . . 4 5 4 2 4 4 4 4 2 2 2 1 3 5 3 5 7 6 5 7 4 Weapon 1 | . . 2 1 1 1 2 1 1 . 1 3 7 6 2 1 1 1 . 1 1 1 1 1 1 1 1 2 1 . . 1 1 Tool/Special . | . . . . . . . . . . . . . . . . . . . . . . . . . . . . . . . . . Unused Backups 20 | . . . . 2 . . . . 2 . . . 1 3 1 . . . . 1 . . . 4 . . . 3 . 1 . 2 Power 4 | . . . . . . . . . 1 . . . . 1 . . . . . . . . . 2 . . . . . . . . Propulsion 5 | . . . . 2 . . . . 1 . . . . . . . . . . . . . . 1 . . . 1 . . . . Utility 7 | . . . . . . . . . . . . . . 1 1 . . . . 1 . . . 1 . . . 2 . . . 1 Weapon 1 | . . . . . . . . . . . . . 1 . . . . . . . . . . . . . . . . . . . Tool/Special 3 | . . . . . . . . . . . . . . 1 . . . . . . . . . . . . . . . 1 . 1 Average Slot Usage (%) 86 | . 77 85 96 100 84 88 98 83 95 90 100 99 100 90 90 88 88 78 76 74 74 74 60 77 86 84 85 94 95 92 82 84 Engine 3 | . . . 8 11 9 . 1 4 4 3 6 6 6 2 5 5 5 1 . . . 6 . . . . . . . . . . Core 1 | . . . . . 1 11 5 1 . 1 . . . 2 4 5 5 1 . . . . 2 . . . . . . . 2 3 Reactor 2 | . . . . . . . . . . . . . . . . . . 3 5 5 4 . . 6 9 5 7 7 8 7 4 4 Leg 7 | . . . . . . . . 18 . 21 40 40 40 25 . . . . . . . . . . . . . . . . . . Flight 25 | . 24 28 33 33 32 33 37 9 38 12 . . . 9 33 29 29 29 29 26 27 31 23 28 33 32 36 42 43 42 32 30 Device 11 | . . . 10 11 12 6 14 3 6 6 1 . 6 5 14 18 23 18 17 15 13 14 11 16 16 21 23 22 21 28 25 32 Storage 1 | . . . . . . . . . . 1 6 6 6 4 . . . . . . . . . 1 4 4 4 4 4 4 4 5 Processor 4 | . 10 14 10 . . . 6 7 8 6 6 1 . . 3 5 5 5 5 5 5 5 5 4 4 4 1 3 4 4 8 4 Hackware 13 | . 10 14 11 22 12 26 15 17 20 19 20 20 20 20 14 9 5 9 11 14 14 10 6 7 8 4 4 7 8 . . . Protection 1 | . . . . . . . . 3 . 2 4 11 6 5 . . . . . . . . . 1 . . . . . . . . Energy Gun 1 | . . 1 9 11 10 11 2 . . . . . . . . . . . . . . . 1 . . . . . . . . . Ballistic Gun 3 | . 27 16 . . . . . 2 1 5 13 . 6 7 2 . . . . . . . . 3 4 3 . . . . . . Slashing Weapon 3 | . . . 8 11 3 . 12 3 5 1 . 5 6 1 1 4 5 4 5 5 5 5 . . 4 4 3 . 3 2 2 2 Piercing Weapon 1 | . . . . . . . . . 4 3 . . . 1 5 5 5 1 . . . . . 2 . . . 3 . . . . Peak Build Rating 229 | 4 10 11 18 25 25 27 37 51 49 65 83 93 90 98 84 81 79 103 99 122 127 87 101 155 158 150 161 190 196 215 208 229 Average Rating 83 | 3 8 10 16 24 20 25 36 40 44 53 75 89 90 69 70 80 79 94 99 115 116 81 87 127 151 141 147 181 191 195 175 206 On Entrance 81 | . 4 10 11 18 25 24 27 37 34 38 65 83 90 90 49 81 79 79 99 99 122 79 87 77 155 143 118 157 187 196 125 196 Naked Turns . | . . . . . . . . . . . . . . . . . . . . . . . . . . . . . . . . . Heaviest Build 77 | 3 5 4 10 8 14 11 16 52 20 62 71 71 70 74 30 31 31 48 48 52 55 37 37 59 64 62 66 77 72 70 73 75 Greatest Support 137 | 3 8 8 12 15 15 15 24 60 25 127 132 137 137 137 40 39 39 49 49 55 56 39 58 72 72 72 71 77 88 88 76 76 Greatest Overweight (x) 23 | . . . . . 1 . . 2 . 4 . 23 . 2 1 . . . . . . . 10 . . . . 1 . . 1 1 Average Overweight (x) . | . . . . . . . . . . . . 3 . . . . . . . . . . . . . . . . . . . . Largest Inventory Capacity 20 | 5 5 5 5 5 5 5 5 5 5 20 20 20 20 20 5 5 5 5 5 5 5 15 15 15 15 15 15 15 15 15 15 15 Average Capacity 9 | 5 5 5 5 5 5 5 5 5 5 8 20 20 20 15 5 5 5 5 5 5 5 5 6 8 15 15 15 15 15 15 15 15 Most Carried 20 | 1 5 5 5 5 5 5 5 5 5 5 12 20 20 20 5 5 5 5 5 5 5 5 6 15 15 14 15 15 15 15 15 15 Average Carried 8 | . 3 5 4 5 4 4 4 4 4 4 7 18 20 15 4 5 5 4 5 4 4 3 4 7 13 12 14 14 14 13 14 13 Final Capacity 20 | 5 5 5 5 5 5 5 5 5 5 20 20 20 20 5 5 5 5 5 5 5 5 15 5 15 15 15 15 15 15 15 15 15 Final Carried 20 | 1 5 5 5 5 5 5 5 5 5 5 12 20 20 5 5 5 5 5 5 5 4 3 5 15 13 14 15 15 15 14 14 12 Class Distribution -------------------- 20% | Scavenger-Mutant 11% | Hacker-Mutant 10% | Scavenger-Sprinter 10% | Hacker-Ninja 10% | Mutant 7% | Hacker-Scout 6% | Sprinter 6% | Hacker-Sprinter 5% | Infiltrator-Ninja 3% | Scavenger-Scout Dominant Class ---------------- Scavenger-Mutant | -10/Materials Scavenger-Mutant | -10/Mines Scavenger-Mutant | -9/Materials Hacker-Mutant | -9/Storage Mutant | -9/Garrison Hacker-Mutant | -9/Recycling Hacker-Scout | -7/Factory Scavenger-Mutant | -7/Garrison Scavenger-Sprinter | -6/Factory Hacker-Mutant | -6/Extension Commander-Mutant | -6/Cetus Scavenger-Mutant | -6/Archives Scavenger-Mutant | -6/Hub_04(d) Scavenger-Mutant | -6/Garrison Hacker-Ninja | -5/Factory Hacker-Ninja | -5/Upper Caves Infiltrator-Ninja | -5/Upper Caves Hacker-Ninja | -5/Warlord Hacker-Ninja | -4/Proximity Caves Hacker-Ninja | -4/Factory Hacker-Sprinter | -4/Garrison Hacker-Scout | -4/Factory Mutant | -4/DSF Hacker-Sprinter | -3/Research Hacker-Sprinter | -3/Garrison Infiltrator-Ninja | -3/Research Sprinter | -3/Testing Hacker-Scout | -2/Research Hacker-Scout | -2/Quarantine Infiltrator-Ninja | -2/Protoforge Scavenger-Scout | -1/Access Sprinter | -1/Command Resources | -11 -10 -10 -9 -9 -9 -9 -7 -7 -6 -6 -6 -6 -6 -6 -5 -5 -5 -5 -4 -4 -4 -4 -4 -3 -3 -3 -3 -2 -2 -2 -1 -1 ----------- Run | Yrd Mat Min Mat Sto Gar Rec Fac Gar Fac Ext Cet Arc Hub Gar Fac Upp Upp War Pro Fac Gar Fac DSF Res Gar Res Tes Res Qua Frg Acc Com Matter Collected 9028 | 252 320 54 219 37 458 19 . 1274 178 259 122 134 23 716 414 60 66 137 . 67 70 30 823 706 66 85 241 1020 . 235 668 275 Remotely . | . . . . . . . . . . . . . . . . . . . . . . . . . . . . . . . . . Salvage Created 7371 | 86 678 55 253 . 409 . . 470 253 229 . 257 . 1004 146 . . 54 . 88 70 37 352 590 67 329 596 365 . 126 656 201 Parts 408 | 2 47 2 21 . 27 . . 33 16 15 . 25 . 58 6 . . 1 . 2 5 6 4 32 4 13 27 23 . 9 23 7 Haulers Intercepted 10 | . 1 . 1 . . . . . 1 . . . . . 1 . . . . 1 . . 1 2 . . . . . . 2 . Recyclers Shooed 4 | . . . . . . . . . . . . . . . . . . . . . . . . 2 . . . . . . 2 . Parts Field Recycled . | . . . . . . . . . . . . . . . . . . . . . . . . . . . . . . . . . Retrieved Matter . | . . . . . . . . . . . . . . . . . . . . . . . . . . . . . . . . . Parts Self-Destructed . | . . . . . . . . . . . . . . . . . . . . . . . . . . . . . . . . . Prevented . | . . . . . . . . . . . . . . . . . . . . . . . . . . . . . . . . . Kills | -11 -10 -10 -9 -9 -9 -9 -7 -7 -6 -6 -6 -6 -6 -6 -5 -5 -5 -5 -4 -4 -4 -4 -4 -3 -3 -3 -3 -2 -2 -2 -1 -1 ------- Run | Yrd Mat Min Mat Sto Gar Rec Fac Gar Fac Ext Cet Arc Hub Gar Fac Upp Upp War Pro Fac Gar Fac DSF Res Gar Res Tes Res Qua Frg Acc Com Combat Hostiles Destroyed 121 | . 16 1 8 . 19 . . 21 1 5 . . . 24 . . . 1 . . 3 . 9 2 1 4 3 1 . 1 1 . Melee 14 | . . . . . . . . . 1 5 . . . . . . . 1 . . 3 . . 1 1 1 . 1 . . . . Guns 59 | . 9 1 3 . 7 . . 6 . . . . . 23 . . . . . . . . 2 1 . 3 3 . . . 1 . Cannons 24 | . . . . . . . . 15 . . . . . 1 . . . . . . . . 7 . . . . . . 1 . . AOE 24 | . 7 . 5 . 12 . . . . . . . . . . . . . . . . . . . . . . . . . . . Classes Destroyed 20 | 1 7 . 2 . . . . 3 1 . . . . 3 . . . 1 . . . . 2 . . . . . . . . . Worker 2 | . 1 . . . . . . . . . . . . . . . . . . . . 1 . . . . . . . . . . Builder 13 | . . . . . . . . . 2 1 . . . . . . . . . . . 1 . 1 . . 4 1 . . 3 . Tunneler 2 | . . . 1 . . . . . . . . . . . . . . . . . . . . 1 . . . . . . . . Hauler 10 | . 1 . 1 . . . . . 1 . . . . . 1 . . . . 1 . . 1 2 . . . . . . 2 . Recycler 10 | 1 2 . . . . . . . . . . . . . . . . . . . . . . 1 . . 3 . . . 2 1 Mechanic 3 | . 1 . . . . . . . . . . . . . . . . . . . . . . . . . . . . . 1 1 Operator 16 | . 1 . 3 . . . . . 1 . . 7 . . . . . . . . . . . 1 . . . 3 . . . . Watcher 13 | . 2 . 1 . . . . 1 . . . . . . 1 . . . . . . . . . . . . 5 . 2 1 . Swarmer 49 | . 6 . 5 . 8 . . 9 . 3 . . . 12 . . . . . . 3 . 1 . . . 2 . . . . . Cutter 6 | . . . . . . . . . . . . . . 4 . . . . . . . . . . . 2 . . . . . . Grunt 36 | . 10 1 2 . 8 . . 5 . . . . . 4 . . . . . . . . 2 . . 3 1 . . . . . Duelist 4 | . . . 1 . 3 . . . . . . . . . . . . . . . . . . . . . . . . . . . Sentry 11 | . . . . . . . . 5 . 2 . . . 2 . . . . . . . . 1 . . . . 1 . . . . Demolisher 1 | . . . . . . . . 1 . . . . . . . . . . . . . . . . . . . . . . . . Specialist 1 | . . . . . . . . . . . . . . . . . . . . . . . 1 . . . . . . . . . Hunter 5 | . . . . . . . . . . . . . . 1 . . . . . . . . 3 . 1 . . . . . . . Programmer 5 | . . . . . . . . 1 1 . . . . . . . . . . . . . . 1 . . . . . 1 1 . Heavy 1 | . . . . . . . . . . . . . . . . . . . . . . . 1 . . . . . . . . . Behemoth 2 | . . . . . . . . . . . . . . 1 . . . . . . . . . 1 . . . . . . . . Striker 1 | . . . . . . . . . . . . . . . . . . 1 . . . . . . . . . . . . . . Best Kill Streak 8 | 1 8 1 6 . 4 . . 5 1 2 . 2 . 5 1 . . 1 . 1 3 2 2 2 1 2 3 2 . 1 2 1 Combat Bots Only 7 | . 7 1 4 . 4 . . 5 1 2 . . . 5 . . . 1 . . 3 . 2 1 1 2 3 1 . 1 1 . Max Kills in Single Turn 4 | 1 4 1 2 . 4 . . 1 1 1 . 1 . 2 1 . . 1 . 1 1 1 1 1 1 2 1 1 . 1 1 1 Gunslinging 1 | . . . . . . . . . . . . . . 1 . . . . . . . . . . . . . . . . . . Exploded 4 | . 3 . 2 . 4 . . . . . . . . . . . . . . . . . . . . . . . . . . . Melee 1 | . . . . . . . . . 1 1 . . . . . . . 1 . . 1 . . 1 1 1 . 1 . . . . Uniques/NPCs Destroyed . | . . . . . . . . . . . . . . . . . . . . . . . . . . . . . . . . . Combat | -11 -10 -10 -9 -9 -9 -9 -7 -7 -6 -6 -6 -6 -6 -6 -5 -5 -5 -5 -4 -4 -4 -4 -4 -3 -3 -3 -3 -2 -2 -2 -1 -1 -------- Run | Yrd Mat Min Mat Sto Gar Rec Fac Gar Fac Ext Cet Arc Hub Gar Fac Upp Upp War Pro Fac Gar Fac DSF Res Gar Res Tes Res Qua Frg Acc Com Hostile Shots Fired 1935 | . 41 3 23 6 54 2 . 340 93 69 15 1 32 370 10 . . 5 6 30 96 . 265 109 51 81 33 36 12 88 9 55 Missed 786 | . 14 . 10 5 21 1 . 128 52 33 6 1 10 118 5 . . 1 4 24 42 . 100 54 26 39 11 14 2 39 5 21 Intercepted 7 | . . . . . . . . . . . . . . . . . . . . . . . . . . . . . . . . 7 Hits 1149 | . 27 3 13 1 33 1 . 212 41 36 9 . 22 252 5 . . 4 2 6 54 . 165 55 25 42 22 22 10 49 4 34 Melee 32 | . . . . . 2 . . . . . . . . 26 . . . 1 . . . . . . 1 1 . . . 1 . . Projectile 1117 | . 27 3 13 1 31 1 . 212 41 36 9 . 22 226 5 . . 3 2 6 54 . 165 55 24 41 22 22 10 48 4 34 AOE 19 | . . . . . . . . 8 . . . . . . . . . . . . . . . . 2 2 . 1 . . . 6 Critical Strikes 49 | . . . . . 3 1 . 1 2 2 1 . 2 16 . . . 1 . . 1 . 8 2 1 2 . 2 1 2 . 1 Actively Blocked 21 | . . . . . . . . . . 1 . . . . . . . . . . 1 . 8 2 1 2 . 2 1 2 . 1 Part Disruptions 1 | . . . . . . . . . . . . . . . . . . . . . . . . . . . . . . . . 1 Damage Taken 18720 | . 268 54 169 10 452 15 . 2445 492 567 353 25 367 3479 183 . . 98 34 156 958 . 2612 1195 593 733 486 607 170 1286 108 805 Core 4034 | . 62 14 26 . 173 15 . 643 150 96 14 . 30 495 24 . . 62 20 135 168 . 639 247 133 200 65 185 27 265 40 106 Absorbed by Shields 1293 | . . . . . . . . . . 108 47 . . 505 . . . . . . . . 359 . . . . . . . . 274 Redirected to Shielding 117 | . . . . . . . . . 10 107 . . . . . . . . . . . . . . . . . . . . . . Ignored by Resistances 451 | . . . . . . . . 41 . . . . . . . . . . . . . . . . . . . . . . . 410 Regen/Repaired (Parts) 461 | . 28 . 18 . . . . . 61 . . . . . 59 . . 8 . . . . . 210 . . . 77 . . . . Core Remaining (%) 51 | 100 . 69 . . . 46 . 8 . . . . . 7 . . . . 89 . . . 18 . . . 50 . . 45 . 79 Volleys Fired 528 | 3 45 8 23 . 82 . . 78 2 9 9 3 2 87 . . . 1 . 1 . . 72 10 1 12 18 16 7 6 25 8 Largest 2 | 2 2 1 2 . 2 . . 2 1 2 2 2 1 2 . . . 1 . 1 . . 2 2 1 1 1 1 1 1 2 1 Hottest 300 | 40 50 20 86 . 91 . . 70 23 55 65 65 35 83 . . . 40 . 7 . . 108 108 40 40 90 120 120 300 300 300 Shots Fired 701 | 6 88 8 25 . 87 1 . 86 2 11 18 6 2 138 1 . . 1 . 1 . . 106 18 1 12 18 16 7 6 28 8 Gun 461 | 6 84 8 21 . 74 1 . 26 2 11 18 6 2 120 1 . . 1 . . . . 15 9 1 12 18 10 . . 15 . Cannon 213 | . . . . . . . . 56 . . . . . 18 . . . . . . . . 91 9 . . . 6 7 6 13 7 Launcher 25 | . 4 . 4 . 13 . . 4 . . . . . . . . . . . . . . . . . . . . . . . . Special 2 | . . . . . . . . . . . . . . . . . . . . 1 . . . . . . . . . . . 1 Kinetic 506 | 6 84 8 . . . . . 82 2 11 18 6 2 138 1 . . . . . . . 91 18 1 12 . . 5 . 21 . Thermal 147 | . . . 21 . 74 1 . . . . . . . . . . . . . . . . . . . . 18 16 2 6 2 7 Explosive 25 | . 4 . 4 . 13 . . 4 . . . . . . . . . . . . . . . . . . . . . . . . Electromagnetic 5 | . . . . . . . . . . . . . . . . . . . . . . . . . . . . . . . 5 . Entropic 16 | . . . . . . . . . . . . . . . . . . 1 . . . . 15 . . . . . . . . . Robot Hit Streak 20 | 3 8 13 4 . 7 . . 11 2 4 13 2 1 9 . . . . . 4 . . 11 3 . 5 17 20 . 1 5 8 Robot Miss Streak 8 | 3 5 2 3 . 7 . . 4 1 2 2 5 2 7 . . . . . . . . 8 4 . 2 . . . 1 1 . Penetration Max 2 | . . . . . . . . 1 . . . . . 1 . . . . . . . . . . . 2 . . . . . . Secondary Targets 6 | . . . . . . . . . . . . . . 6 . . . . . . . . . . . . . . . . . . Max Gunslinging Chain 1 | . . . . . . . . . . . . . . 1 . . . . . . . . . . . . . . . . . . Shots Hit Robots 537 | 3 54 6 24 . 33 . 1 53 19 25 14 18 2 80 2 . . 4 . 4 5 2 59 26 1 14 19 27 . 4 26 12 Core Hits 275 | 2 39 3 16 . 22 . . 34 5 10 5 9 . 39 2 . . 1 . 1 3 2 22 8 1 7 12 10 . 3 14 5 Critical Kills 9 | . . . . . . . . 1 . . . . . 3 . . . . . . . . . 1 . 3 . . . 1 . . Critical Parts Destroyed 14 | . . . . . . . . . 1 . 1 . . 6 . . . . . . . . . 1 . 3 2 . . . . . Critical Strikes 59 | . . . 5 . 1 . . 10 3 1 1 1 . 11 . . . . . . . . 8 2 . 7 2 4 . 1 1 1 Burn 5 | . . . 4 . 1 . . . . . . . . . . . . . . . . . . . . . . . . . . . Destroy 27 | . . . . . . . . 1 1 . 1 . . 11 . . . . . . . . . 2 . 6 2 1 . 1 . 1 Blast 15 | . . . . . . . . 8 . . . . . . . . . . . . . . 6 . . . . . . . 1 . Sever 6 | . . . 1 . . . . 1 . . . 1 . . . . . . . . . . 2 . . 1 . . . . . . Impale 6 | . . . . . . . . . 2 1 . . . . . . . . . . . . . . . . . 3 . . . . Melee Attacks 727 | . . . 37 3 35 . 25 50 85 43 . 16 2 35 28 5 1 4 1 50 23 10 8 67 19 18 17 54 8 21 29 33 Impact 4 | . . . . . . . . . . 4 . . . . . . . . . . . . . . . . . . . . . . Slashing 486 | . . . 37 3 35 . 25 50 36 . . 12 2 25 . 4 1 4 1 50 23 10 8 15 19 18 17 . 8 21 29 33 Piercing 233 | . . . . . . . . . 49 39 . . . 10 28 1 . . . . . . . 52 . . . 54 . . . . Sneak Attacks 56 | . . . 3 . . . . . 4 3 . 13 . . 1 . . . . 1 . 2 1 8 1 1 7 7 . . 2 2 Combat Hostiles 7 | . . . . . . . . . . . . . . . . . . . . . . . . 1 1 1 . 4 . . . . Follow-up Attacks 3 | . . . . . . . 1 . 2 . . . . . . . . . . . . . . . . . . . . . . . Damage Inflicted 22915 | 30 1125 73 1078 . 1443 . 31 2925 821 904 304 955 75 1999 131 . . 151 . 182 175 135 2616 1312 110 500 1229 2109 . 538 1177 787 Guns 5764 | 30 546 73 221 . 500 . . 415 16 110 304 51 30 1651 . . . . . . . . 688 30 . 101 469 247 . . 282 . Cannons 5632 | . . . . . . . . 2388 . . . . . 242 . . . . . . . . 1655 269 . . . . . 250 478 350 Explosions 1900 | . 579 . 378 . 943 . . . . . . . . . . . . . . . . . . . . . . . . . . . Melee 9587 | . . . 479 . . . 31 122 805 794 . 904 29 90 131 . . 151 . 182 175 135 273 1013 110 399 760 1862 . 288 417 437 Ramming 32 | . . . . . . . . . . . . . 16 16 . . . . . . . . . . . . . . . . . . Kinetic 8563 | 30 546 73 . . . . . 2803 16 110 304 51 30 1893 . . . . . . . . 1655 299 . 101 . . . . 652 . Thermal 2037 | . . . 221 . 500 . . . . . . . . . . . . . . . . . . . . . 469 247 . 250 . 350 Explosive 1900 | . 579 . 378 . 943 . . . . . . . . . . . . . . . . . . . . . . . . . . . Electromagnetic 108 | . . . . . . . . . . . . . . . . . . . . . . . . . . . . . . . 108 . Impact 61 | . . . . . . . . . . 61 . . . . . . . . . . . . . . . . . . . . . . Slashing 5208 | . . . 479 . . . 31 122 67 . . 904 29 90 . . . 151 . 182 175 135 273 159 110 399 760 . . 288 417 437 Piercing 4318 | . . . . . . . . . 738 733 . . . . 131 . . . . . . . . 854 . . . 1862 . . . . Entropic 688 | . . . . . . . . . . . . . . . . . . . . . . . 688 . . . . . . . . . Highest Corruption 14 | . . . 5 5 11 14 . 1 3 . . . . 1 5 5 5 5 . . . . . 4 2 2 1 . . 13 . . Average Corruption 5 | . . . 5 5 9 12 . 1 2 . . . . 1 5 5 5 5 . . . . . 2 2 1 1 . . 5 . . Corruption Purged 10 | . . . . . . . . . . . . 3 . . . . . . . . . . . 4 . 2 1 . . . . . Corruption Blocked 1 | . . . . . . . . . . . . . . . . . . . . . . . . . . . . . . . . 1 Effects 126 | . . . 10 4 51 17 . 5 . . . . . 2 7 3 2 1 . . . . . 13 2 5 . . . 4 . . Message Errors 34 | . . . 3 1 12 3 . 1 . . . . . 1 1 2 . . . . . . . 6 1 2 . . . 1 . . Matter Fused 37 | . . . 1 1 17 6 . 2 . . . . . . 4 1 2 . . . . . . 1 . 2 . . . . . . Heat Flow Errors 15 | . . . 3 . 5 3 . 1 . . . . . 1 1 . . . . . . . . . . . . . . 1 . . Energy Discharges 9 | . . . 1 1 3 1 . . . . . . . . . . . . . . . . . 2 1 . . . . . . . Parts Rejected 4 | . . . . . 2 . . . . . . . . . . . . . . . . . . 1 . . . . . 1 . . Data Loss (minor) 11 | . . . . 1 6 3 . 1 . . . . . . . . . . . . . . . . . . . . . . . . Data Loss (major) 6 | . . . 1 . 2 . . . . . . . . . . . . 1 . . . . . 1 . 1 . . . . . . Misfires 3 | . . . . . . 1 . . . . . . . . 1 . . . . . . . . 1 . . . . . . . . Alerts 2 | . . . 1 . . . . . . . . . . . . . . . . . . . . . . . . . . 1 . . Misdirections 1 | . . . . . 1 . . . . . . . . . . . . . . . . . . . . . . . . . . . Weapon Failures 4 | . . . . . 3 . . . . . . . . . . . . . . . . . . 1 . . . . . . . . Overload Shots . | . . . . . . . . . . . . . . . . . . . . . . . . . . . . . . . . . Overflow Damage 1679 | . . . 90 . 62 . . 246 84 96 . 176 . . . . . . . . . . 45 202 . 41 150 353 . 48 86 . Projectiles 323 | . . . . . . . . 246 . . . . . . . . . . . . . . 42 31 . . . . . . 4 . Explosions 87 | . . . 25 . 62 . . . . . . . . . . . . . . . . . . . . . . . . . . . Melee 1269 | . . . 65 . . . . . 84 96 . 176 . . . . . . . . . . 3 171 . 41 150 353 . 48 82 . Knockbacks 25 | . . . . . . . . 2 . . . . . 1 . . . . . . . . 17 3 . . . . . . 2 . Impact . | . . . . . . . . . . . . . . . . . . . . . . . . . . . . . . . . . Kinetic 25 | . . . . . . . . 2 . . . . . 1 . . . . . . . . 17 3 . . . . . . 2 . Secondary . | . . . . . . . . . . . . . . . . . . . . . . . . . . . . . . . . . Self-Inflicted Damage 16 | . . . . . . . . . . . . . . 16 . . . . . . . . . . . . . . . . . . Shots . | . . . . . . . . . . . . . . . . . . . . . . . . . . . . . . . . . Rammed . | . . . . . . . . . . . . . . . . . . . . . . . . . . . . . . . . . Targets Rammed 2 | . . . . . . . . . . . . . 2 . . . . . . . . . . . . . . . . . . . Kicked 2 | . . . . . . . . . . . . . 2 . . . . . . . . . . . . . . . . . . . Crushed . | . . . . . . . . . . . . . . . . . . . . . . . . . . . . . . . . . Highest Temperature 313 | . 10 . 248 1 313 262 . 202 168 35 10 10 2 153 148 . . 82 189 250 42 . 5 251 27 304 . . 19 156 54 46 Average Temperature 54 | . 2 . 55 1 79 100 . 47 48 8 7 7 2 27 27 . . 34 83 19 14 . 5 64 9 117 . . 19 88 26 18 Received Heat Transfer 2436 | . 96 27 27 6 114 27 . 468 78 73 31 . 72 652 9 . . 65 . . 114 . 125 9 87 57 39 18 . 117 . 125 Effects 4 | . . . . . 1 . . . . . . . . . . . . . . . . . . . . 3 . . . . . . Energy Bleed 1 | . . . . . 1 . . . . . . . . . . . . . . . . . . . . . . . . . . . Interference 3 | . . . . . . . . . . . . . . . . . . . . . . . . . . 3 . . . . . . Siege Activations . | . . . . . . . . . . . . . . . . . . . . . . . . . . . . . . . . . Martial Activations . | . . . . . . . . . . . . . . . . . . . . . . . . . . . . . . . . . Shielding Activations 1 | . . . . . . . . . . . . . . 1 . . . . . . . . . . . . . . . . . . Total Turns 10 | . . . . . . . . . . . . . . 10 . . . . . . . . . . . . . . . . . . Longest Duration 10 | . . . . . . . . . . . . . . 10 . . . . . . . . . . . . . . . . . . Robots Disrupted 1 | . . . . . . . . . . . . . . . . . . . . . . . . . . . . . . . 1 . Combat Hostiles . | . . . . . . . . . . . . . . . . . . . . . . . . . . . . . . . . . Robots Corrupted . | . . . . . . . . . . . . . . . . . . . . . . . . . . . . . . . . . Combat Hostiles . | . . . . . . . . . . . . . . . . . . . . . . . . . . . . . . . . . Parts Fried 1 | . . . . . . . . . . . . . . . . . . . . . . . . . . . . . . . 1 . Impact Corruptions . | . . . . . . . . . . . . . . . . . . . . . . . . . . . . . . . . . Robots Melted . | . . . . . . . . . . . . . . . . . . . . . . . . . . . . . . . . . Combat Hostiles . | . . . . . . . . . . . . . . . . . . . . . . . . . . . . . . . . . Parts Melted 3 | . . . 1 . . . . . . 2 . . . . . . . . . . . . . . . . . . . . . . Heat Transferred 2793 | . . . 851 . 943 . . . . . . . . . . . . . . . . . . . . . 666 333 . . . . Parts Sabotaged . | . . . . . . . . . . . . . . . . . . . . . . . . . . . . . . . . . Parts Stolen . | . . . . . . . . . . . . . . . . . . . . . . . . . . . . . . . . . Parts Stripped . | . . . . . . . . . . . . . . . . . . . . . . . . . . . . . . . . . Power Chain Reactions . | . . . . . . . . . . . . . . . . . . . . . . . . . . . . . . . . . Alert | -11 -10 -10 -9 -9 -9 -9 -7 -7 -6 -6 -6 -6 -6 -6 -5 -5 -5 -5 -4 -4 -4 -4 -4 -3 -3 -3 -3 -2 -2 -2 -1 -1 ------- Run | Yrd Mat Min Mat Sto Gar Rec Fac Gar Fac Ext Cet Arc Hub Gar Fac Upp Upp War Pro Fac Gar Fac DSF Res Gar Res Tes Res Qua Frg Acc Com Maximum Alert Level 4 | . 1 . 2 1 4 2 1 4 3 3 2 2 2 4 3 . . . . . 1 . 1 . 2 1 . 1 1 3 2 3 Low Security (%) 32 | 100 58 100 22 54 . 26 . . . . . 28 37 . . . . . . 100 80 100 68 100 44 96 100 39 87 56 . . Level 1 24 | . 41 . 58 45 7 47 100 28 24 20 . 66 49 11 . . . . . . 19 . 31 . 50 3 . 60 12 10 . 1 Level 2 23 | . . . 19 . 14 25 . 20 62 43 100 4 12 45 3 . . . . . . . . . 5 . . . . 24 100 73 Level 3 17 | . . . . . 61 . . 38 12 35 . . . 36 96 . . . . . . . . . . . . . . 9 . 25 Level 4 2 | . . . . . 16 . . 12 . . . . . 7 . . . . . . . . . . . . . . . . . . Level 5 . | . . . . . . . . . . . . . . . . . . . . . . . . . . . . . . . . . High Security . | . . . . . . . . . . . . . . . . . . . . . . . . . . . . . . . . . Max Security . | . . . . . . . . . . . . . . . . . . . . . . . . . . . . . . . . . Sterilizations 1 | . . . . . . . . . . . . . . . . . . . . . . . 1 . . . . . . . . . Peak Influence 1387 | 5 384 108 440 378 1387 684 332 1277 743 999 677 410 555 1345 848 . . . . 24 248 128 275 191 418 236 61 300 208 936 626 742 Initial 705 | . 3 108 11 174 239 624 307 193 669 317 526 254 38 388 705 . . . . . 2 121 39 154 111 234 . 28 151 110 537 400 Average 420 | 1 210 49 293 220 923 313 299 708 538 626 593 264 236 690 774 . . . . 4 115 97 130 140 236 36 30 196 168 285 525 598 Influence Increases 15783 | 5 630 75 765 254 1258 186 389 1444 1023 1256 361 276 667 1147 332 . . 384 . 191 271 26 406 599 347 154 221 806 156 1106 373 675 Destroy 0b10 Robot/C 4300 | . 320 40 220 140 420 . . 560 200 620 160 80 220 480 . . . 280 . . 60 . 180 60 20 80 60 60 . 20 20 . Destroy 0b10 Robot/NC 380 | 5 40 . 35 . . . . 5 20 20 10 35 . 5 10 . . . . 5 . 10 5 30 . . 35 45 . 10 45 10 Destroy Leader 506 | . 56 10 54 30 20 . . 30 32 74 . . 80 30 4 . . . . 2 . . 10 24 10 . . 20 . 4 16 . Allied During Kill 1207 | . . 10 16 21 15 . . 28 16 420 157 115 300 . . . . 104 . . . . 2 . . 3 . . . . . . Trap Triggered on 0b10 10 | . . . . . 10 . . . . . . . . . . . . . . . . . . . . . . . . . . . Successful Hack 596 | . 32 . 23 . 18 6 58 26 64 42 13 . 16 10 . . . . . 68 8 . . 84 . 21 39 . 42 2 24 . Select Force Hacks 260 | . 60 . 30 . . 150 20 . . . . . . . . . . . . . . . . . . . . . . . . . Disable Machine 720 | . . . 30 . 60 . 15 60 45 15 . 45 45 30 15 . . . . . 30 . 15 30 15 . 60 45 30 105 15 15 Anti-Garrison Action 2100 | . . . . . 400 . . 550 . . . . . 250 . . . . . . 100 . . . 250 . . 300 . 200 . 50 Destroy Structure 1959 | . 17 . 42 3 135 . 16 140 46 50 21 1 6 117 48 . . . . 86 43 16 74 86 37 20 12 51 39 345 118 390 Advance Influence 250 | . . . . . . . 250 . . . . . . . . . . . . . . . . . . . . . . . . . Partial Spotted 960 | . . 15 135 45 45 . 30 15 75 . . . . 60 45 . . . . 30 15 . . 150 15 30 15 120 15 30 30 45 Lose Combat Pursuer 2535 | . 105 . 180 15 135 30 . 30 525 15 . . . 165 210 . . . . . 15 . 120 135 . . . 165 30 390 105 165 Influence Decreases 15006 | . 357 323 381 300 239 1435 251 443 1652 963 665 803 222 357 936 355 114 468 188 187 42 202 188 725 78 572 170 587 229 407 643 524 Entered New Map 6201 | . 2 170 19 240 129 763 81 83 608 331 415 383 72 167 640 275 74 272 188 . 2 112 18 121 38 184 . 23 119 87 359 226 Time Decay 5367 | . 335 148 302 60 . 222 170 . 464 392 190 380 50 . 246 80 40 96 . 169 . 90 . 434 . 178 160 389 100 180 254 238 Search Patrol Dispatched 150 | . . . . . . . . . 150 . . . . . . . . . . . . . . . . . . . . . . . Lost Part 1075 | . 20 . 20 . 50 . . 150 50 80 . . . 190 30 . . . . . 40 . 170 70 20 20 10 35 . 80 . 40 Lost Ally 1305 | . . 5 40 . 60 . . 210 80 160 60 40 100 . 20 . . 100 . 10 . . . 100 20 40 . 140 10 60 30 20 Purge Threat 908 | . . . . . . 450 . . 300 . . . . . . . . . . 8 . . . . . 150 . . . . . . Squads Dispatched 99 | . 5 . 5 3 . . 3 . 14 3 . . 6 . 3 . . . . 7 . . 1 8 . 7 3 1 5 4 15 6 Investigation 32 | . 5 . 2 1 . . 2 . 6 . . . 2 . 1 . . . . . . . . 5 . 2 1 . . 1 . 4 Extermination 19 | . . . . . . . 1 . 5 . . . . . 1 . . . . 2 . . . . . 2 1 . 1 1 3 2 Reinforcement 31 | . . . 3 . . . . . 2 2 . . 3 . . . . . . 5 . . 1 3 . 3 . 1 4 . 4 . Assault 10 | . . . . 2 . . . . 1 1 . . . . 1 . . . . . . . . . . . . . . 2 3 . Garrison 7 | . . . . . . . . . . . . . 1 . . . . . . . . . . . . . 1 . . . 5 . Intercept . | . . . . . . . . . . . . . . . . . . . . . . . . . . . . . . . . . Searches Triggered 1 | . . . . . . . . . 1 . . . . . . . . . . . . . . . . . . . . . . . Construction Impeded 2 | . . . . . . . . . . . . . . . . . . . . . . . . . . 1 . . . . 1 . Haulers Reinforced 3 | . . . . . . . . . 1 . . . . . . . . . . . . . . 1 . . . 1 . . . . Active Scanning Responses . | . . . . . . . . . . . . . . . . . . . . . . . . . . . . . . . . . Cargo Convoy Interrupts . | . . . . . . . . . . . . . . . . . . . . . . . . . . . . . . . . . Stealth | -11 -10 -10 -9 -9 -9 -9 -7 -7 -6 -6 -6 -6 -6 -6 -5 -5 -5 -5 -4 -4 -4 -4 -4 -3 -3 -3 -3 -2 -2 -2 -1 -1 --------- Run | Yrd Mat Min Mat Sto Gar Rec Fac Gar Fac Ext Cet Arc Hub Gar Fac Upp Upp War Pro Fac Gar Fac DSF Res Gar Res Tes Res Qua Frg Acc Com Distress Signals 48 | . 2 . 1 2 . . . . 3 2 2 . 2 . 2 . . 1 . 4 . . . 5 . 4 1 8 . . 2 7 Communications Jammed 8 | . . . . . . . . . . . . . . . . . . . . . . . . . . . . . . 8 . . Distress Signals 8 | . . . . . . . . . . . . . . . . . . . . . . . . . . . . . . 8 . . Times Spotted 714 | . 31 3 31 11 29 2 3 34 44 30 10 10 10 41 12 . . 21 17 46 37 . 20 22 40 39 15 37 12 57 21 29 Peak Tracking Total 29 | . 5 2 7 10 7 2 1 6 9 5 5 2 5 9 8 . . 16 9 8 14 . 7 10 22 9 7 8 5 29 7 15 Tactical Retreats 112 | . 4 . 8 1 5 1 . 2 16 1 . . . 3 6 . . 2 3 11 3 . 2 9 4 9 1 8 1 6 3 3 Traps | -11 -10 -10 -9 -9 -9 -9 -7 -7 -6 -6 -6 -6 -6 -6 -5 -5 -5 -5 -4 -4 -4 -4 -4 -3 -3 -3 -3 -2 -2 -2 -1 -1 ------- Run | Yrd Mat Min Mat Sto Gar Rec Fac Gar Fac Ext Cet Arc Hub Gar Fac Upp Upp War Pro Fac Gar Fac DSF Res Gar Res Tes Res Qua Frg Acc Com Traps Triggered 53 | . 1 . . 3 . . . 6 8 1 . . . 3 4 . . . . . 1 . 4 2 2 1 3 . 1 8 1 4 Indirectly . | . . . . . . . . . . . . . . . . . . . . . . . . . . . . . . . . . Trap Hack Attempts . | . . . . . . . . . . . . . . . . . . . . . . . . . . . . . . . . . Triggered . | . . . . . . . . . . . . . . . . . . . . . . . . . . . . . . . . . Disarmed . | . . . . . . . . . . . . . . . . . . . . . . . . . . . . . . . . . Reprogrammed . | . . . . . . . . . . . . . . . . . . . . . . . . . . . . . . . . . Reused 1 | . . . . . 1 . . . . . . . . . . . . . . . . . . . . . . . . . . . Traps Extracted . | . . . . . . . . . . . . . . . . . . . . . . . . . . . . . . . . . Installed 1 | . . . . . 1 . . . . . . . . . . . . . . . . . . . . . . . . . . . Triggered 1 | . . . . . 1 . . . . . . . . . . . . . . . . . . . . . . . . . . . Most Traps Carried 1 | . . . . . 1 . . . . . . . . . . . . . . . . . . . . . . . . . . . Machines | -11 -10 -10 -9 -9 -9 -9 -7 -7 -6 -6 -6 -6 -6 -6 -5 -5 -5 -5 -4 -4 -4 -4 -4 -3 -3 -3 -3 -2 -2 -2 -1 -1 ---------- Run | Yrd Mat Min Mat Sto Gar Rec Fac Gar Fac Ext Cet Arc Hub Gar Fac Upp Upp War Pro Fac Gar Fac DSF Res Gar Res Tes Res Qua Frg Acc Com Machines Disabled 88 | . . . 2 . 11 . 1 15 3 1 . 3 3 9 1 . . 1 . . 4 . 1 2 4 . 4 5 2 12 1 3 Max in Single Turn 3 | . . . 1 . 1 . 1 2 1 . . 1 . 2 1 . . 1 . . 1 . 1 1 1 . 1 1 1 3 1 2 Garrison Access 8 | . . . . . . . . . . . . . . . 2 . . . . 1 . 1 . . . . . 2 . 1 1 . Garrison Relay 22 | . . . . . 6 . . 7 . . . . . 4 . . . . . . 2 . . . 3 . . . . . . . Phase Generator 3 | . . . . . . . . 1 . . . . . 1 . . . . . . . . . . . . . . . . . 1 Machines Repaired . | . . . . . . . . . . . . . . . . . . . . . . . . . . . . . . . . . Machines Dismantled . | . . . . . . . . . . . . . . . . . . . . . . . . . . . . . . . . . Machines Sabotaged . | . . . . . . . . . . . . . . . . . . . . . . . . . . . . . . . . . Overloaded Fab Kills . | . . . . . . . . . . . . . . . . . . . . . . . . . . . . . . . . . Hacking | -11 -10 -10 -9 -9 -9 -9 -7 -7 -6 -6 -6 -6 -6 -6 -5 -5 -5 -5 -4 -4 -4 -4 -4 -3 -3 -3 -3 -2 -2 -2 -1 -1 --------- Run | Yrd Mat Min Mat Sto Gar Rec Fac Gar Fac Ext Cet Arc Hub Gar Fac Upp Upp War Pro Fac Gar Fac DSF Res Gar Res Tes Res Qua Frg Acc Com Machines Accessed 177 | . 11 . 13 5 4 11 10 4 22 15 3 . 3 2 3 . 1 4 . 17 1 3 . 14 2 2 9 . 7 6 2 3 Terminals 119 | . 8 . 9 4 4 6 7 4 13 15 3 . 2 2 . . . . . 11 1 2 . 4 2 1 7 . 7 4 1 2 Fabricators 14 | . . . . . . . 2 . 6 . . . . . . . . . . 3 . . . 2 . . 1 . . . . . Repair Stations 12 | . 1 . 2 . . . . . 3 . . . . . 1 . . . . . . . . 3 . . 1 . . . . 1 Recycling Units 9 | . 2 . 1 . . 5 . . . . . . . . . . . . . . . . . 1 . . . . . . . . Scanalyzers 4 | . . . 1 . . . . . . . . . . . . . . . . 1 . . . 1 . . . . . 1 . . Garrison Access 14 | . . . . 1 . . 1 . . . . . 1 . 2 . . . . 2 . 1 . 3 . 1 . . . 1 1 . Total Hacks 480 | . 35 . 43 10 8 33 32 8 65 36 8 . 8 7 4 . 1 15 . 57 8 4 . 32 4 4 19 . 19 8 4 8 Successful 298 | . 20 . 30 7 5 21 24 4 41 24 4 . 5 7 3 . 1 15 . 42 2 2 . 17 1 2 2 . 12 5 1 1 Failed 181 | . 15 . 12 3 3 12 8 4 24 12 4 . 3 . 1 . . . . 15 6 2 . 15 3 2 17 . 7 3 3 7 Catastrophic 19 | . . . . . . . . 2 2 1 2 . . . . . . . . . 2 . . 2 . 1 4 . . 1 1 1 Database Lockouts 1 | . . . 1 . . . . . . . . . . . . . . . . . . . . . . . . . . . . . Manual 297 | . 25 . 35 6 5 20 23 1 47 20 1 . 7 5 1 . . . . 33 4 2 . 14 1 3 11 . 18 6 4 5 Terminals 349 | . 26 . 33 9 8 24 25 8 41 36 8 . 6 7 . . . . . 42 8 3 . 9 4 2 16 . 19 6 2 7 Fabricators 37 | . . . . . . . 5 . 19 . . . . . . . . . . 5 . . . 6 . . 2 . . . . . Repair Stations 26 | . 7 . 3 . . . . . 5 . . . . . 1 . . . . . . . . 8 . . 1 . . . . 1 Recycling Units 14 | . 2 . 1 . . 9 . . . . . . . . . . . . . . . . . 2 . . . . . . . . Scanalyzers 16 | . . . 6 . . . . . . . . . . . . . . . . 6 . . . 3 . . . . . 1 . . Garrison Access 22 | . . . . 1 . . 2 . . . . . 2 . 3 . . . . 4 . 1 . 4 . 2 . . . 1 2 . Terminal Hacks 103 | . 4 . 7 3 2 5 7 4 8 12 4 . 2 4 . . 1 15 . 15 2 1 . 1 . 1 . . 3 1 . 1 Record 11 | . . . . . . . . . . . 3 . . . . . . 8 . . . . . . . . . . . . . . Part Schematic 6 | . . . . . . . 3 . 1 1 . . . . . . . . . . . . . 1 . . . . . . . . Robot Analysis 8 | . . . 3 . . 1 . . 1 . . . . . . . . . . 3 . . . . . . . . . . . . Prototype ID Bank 10 | . . . 1 1 . . . . . 1 . . . . . . . 6 . 1 . . . . . . . . . . . . Open Door 16 | . . . . 2 . . . 1 1 8 1 . . . . . 1 1 . . . . . . . . . . . . . 1 Open DSF 1 | . . . . . . . . . . . . . . . . . . . . . . 1 . . . . . . . . . . Level Access Points 1 | . . . . . . . . . . 1 . . . . . . . . . . . . . . . . . . . . . . Branch Access Points 2 | . . . . . . . 1 . . . . . . . . . . . . 1 . . . . . . . . . . . . Emergency Access Points 2 | . . . . . . . . 1 . . . . . 1 . . . . . . . . . . . . . . . . . . Terminal Index 7 | . 1 . 1 . . 1 1 . . . . . 1 . . . . . . 1 . . . . . . . . 1 . . . Scanalyzer Index 1 | . . . . . . . . . . . . . . . . . . . . 1 . . . . . . . . . . . . Garrison Index 1 | . . . . . . . . . . . . . . . . . . . . 1 . . . . . . . . . . . . Alert Level 2 | . . . . . . . . . . 1 . . . . . . . . . 1 . . . . . . . . . . . . Unreport Threat 7 | . . . . . . 3 . . 2 . . . . . . . . . . 1 . . . . . 1 . . . . . . Locate Traps 1 | . . . . . . . . . . . . . . . . . . . . 1 . . . . . . . . . . . . Recall Extermination 2 | . . . . . . . . . 1 . . . . . . . . . . 1 . . . . . . . . . . . . Recall Assault 1 | . . . . . . . . . 1 . . . . . . . . . . . . . . . . . . . . . . . Registered Components 1 | . 1 . . . . . . . . . . . . . . . . . . . . . . . . . . . . . . . Registered Prototypes 1 | . . . . . . . . . . . . . . . . . . . . 1 . . . . . . . . . . . . Zone Layout 12 | . 2 . 2 . . . 2 . 1 . . . 1 . . . . . . 2 . . . . . . . . 2 . . . Garrison Registry 3 | . . . . . 1 . . . . . . . . 1 . . . . . . 1 . . . . . . . . . . . Patrol Navigation 4 | . . . . . 1 . . 1 . . . . . 1 . . . . . . 1 . . . . . . . . . . . Security Stations 2 | . . . . . . . . 1 . . . . . 1 . . . . . . . . . . . . . . . . . . Proto ID Catalog 1 | . . . . . . . . . . . . . . . . . . . . . . . . . . . . . . 1 . . Fabricator Hacks 13 | . . . . . . . 3 . 7 . . . . . . . . . . 1 . . . 2 . . . . . . . . Network Status 2 | . . . . . . . . . 1 . . . . . . . . . . 1 . . . . . . . . . . . . Load Schematic 6 | . . . . . . . 2 . 3 . . . . . . . . . . . . . . 1 . . . . . . . . Build 5 | . . . . . . . 1 . 3 . . . . . . . . . . . . . . 1 . . . . . . . . Repair Station Hacks 13 | . 5 . 2 . . . . . 2 . . . . . . . . . . . . . . 4 . . . . . . . . Scan Component 7 | . 3 . 1 . . . . . 1 . . . . . . . . . . . . . . 2 . . . . . . . . Repair 6 | . 2 . 1 . . . . . 1 . . . . . . . . . . . . . . 2 . . . . . . . . Recycling Unit Hacks 3 | . . . . . . 2 . . . . . . . . . . . . . . . . . 1 . . . . . . . . Retrieve Components 3 | . . . . . . 2 . . . . . . . . . . . . . . . . . 1 . . . . . . . . Scanalyzer 15 | . . . 6 . . . . . . . . . . . . . . . . 5 . . . 3 . . . . . 1 . . Insert Component 8 | . . . 3 . . . . . . . . . . . . . . . . 3 . . . 1 . . . . . 1 . . Analyze 7 | . . . 3 . . . . . . . . . . . . . . . . 2 . . . 2 . . . . . . . . Garrison Access Hacks 11 | . . . . 1 . . 1 . . . . . 1 . 2 . . . . 2 . 1 . 3 . . . . . . . . Unlock Access 7 | . . . . 1 . . 1 . . . . . 1 . . . . . . 1 . . . 3 . . . . . . . . Seal Access 4 | . . . . . . . . . . . . . . . 2 . . . . 1 . 1 . . . . . . . . . . Unauthorized Hacks 140 | . 11 . 15 3 3 14 13 . 24 12 . . 2 3 1 . . . . 19 . . . 3 1 1 2 . 9 3 1 . Terminals 112 | . 9 . 13 3 3 9 11 . 15 12 . . 1 3 . . . . . 16 . . . 1 1 1 2 . 9 2 1 . Track 18 | . 2 . 2 1 1 1 1 . 2 1 . . . 1 . . . . . 2 . . . . . . . . 3 1 . . Assimilate 4 | . . . . . . . 1 . . . . . . . . . . . . 1 . . . . . 1 . . 1 . . . Botnet 45 | . 2 . 4 1 2 2 4 . 6 5 . . 1 1 . . . . . 7 . . . 1 . . 2 . 5 1 1 . Disrupt 5 | . . . 2 . . 1 . . . . . . . 1 . . . . . 1 . . . . . . . . . . . . Skim 39 | . 5 . 5 1 . 5 5 . 7 6 . . . . . . . . . 5 . . . . . . . . . . . . Override 1 | . . . . . . . . . . . . . . . . . . . . . . . . . 1 . . . . . . . Fabricators 13 | . . . . . . . 2 . 7 . . . . . . . . . . 3 . . . 1 . . . . . . . . Prioritize 2 | . . . . . . . . . 2 . . . . . . . . . . . . . . . . . . . . . . . Liberate 1 | . . . . . . . . . 1 . . . . . . . . . . . . . . . . . . . . . . . Fabnet 8 | . . . . . . . . . 4 . . . . . . . . . . 3 . . . 1 . . . . . . . . Download 1 | . . . . . . . 1 . . . . . . . . . . . . . . . . . . . . . . . . . Recompile 1 | . . . . . . . 1 . . . . . . . . . . . . . . . . . . . . . . . . . Repair Stations 5 | . . . 1 . . . . . 2 . . . . . 1 . . . . . . . . 1 . . . . . . . . Patch 5 | . . . 1 . . . . . 2 . . . . . 1 . . . . . . . . 1 . . . . . . . . Recycling Units 8 | . 2 . 1 . . 5 . . . . . . . . . . . . . . . . . . . . . . . . . . Tunnel 8 | . 2 . 1 . . 5 . . . . . . . . . . . . . . . . . . . . . . . . . . Scanalyzers . | . . . . . . . . . . . . . . . . . . . . . . . . . . . . . . . . . Garrison Access 2 | . . . . . . . . . . . . . 1 . . . . . . . . . . . . . . . . 1 . . Reprogram 1 | . . . . . . . . . . . . . 1 . . . . . . . . . . . . . . . . . . . Jam 1 | . . . . . . . . . . . . . . . . . . . . . . . . . . . . . . 1 . . Data Cores Recovered 1 | . . . . . . . . . 1 . . . . . . . . . . . . . . . . . . . . . . . Used . | . . . . . . . . . . . . . . . . . . . . . . . . . . . . . . . . . Hacking Detections 135 | . 9 . 11 2 4 6 8 4 18 7 3 . 3 2 1 . . . . 13 1 2 . 12 1 2 9 . 7 4 2 4 Full Trace Events 14 | . 3 . . . . . . . 4 . . . 1 . . . . . . . . . . 2 1 1 1 . . . . 1 Feedback Events 2 | . . . . . . . . . . . . . . . . . . . . . . . . 2 . . . . . . . . Corruption 2 | . . . . . . . . . . . . . . . . . . . . . . . . 2 . . . . . . . . Feedback Blocked . | . . . . . . . . . . . . . . . . . . . . . . . . . . . . . . . . . Robot Schematics Acquired . | . . . . . . . . . . . . . . . . . . . . . . . . . . . . . . . . . Robots Built . | . . . . . . . . . . . . . . . . . . . . . . . . . . . . . . . . . Authchips . | . . . . . . . . . . . . . . . . . . . . . . . . . . . . . . . . . Time . | . . . . . . . . . . . . . . . . . . . . . . . . . . . . . . . . . Total Robot Build Rating . | . . . . . . . . . . . . . . . . . . . . . . . . . . . . . . . . . Part Schematics Acquired 13 | . . . 3 . . . 4 . 1 1 . . . . . . . . . 2 . . . 2 . . . . . . . . Parts Built 7 | . . . . . . . 1 . 5 . . . . . . . . . . . . . . 1 . . . . . . . . Authchips 3 | . . . . . . . 1 . 1 . . . . . . . . . . . . . . 1 . . . . . . . . Time 288 | . . . . . . . 36 . 217 . . . . . . . . . . . . . . 35 . . . . . . . . Total Part Build Rating 36 | . . . . . . . 3 . 27 . . . . . . . . . . . . . . 6 . . . . . . . . Parts Repaired 6 | . 2 . 1 . . . . . 1 . . . . . . . . . . . . . . 2 . . . . . . . . Time 158 | . 52 . 26 . . . . . 19 . . . . . . . . . . . . . . 61 . . . . . . . . Parts Recycled . | . . . . . . . . . . . . . . . . . . . . . . . . . . . . . . . . . Recycled Matter . | . . . . . . . . . . . . . . . . . . . . . . . . . . . . . . . . . Retrieved Matter . | . . . . . . . . . . . . . . . . . . . . . . . . . . . . . . . . . Retrieved Components 13 | . . . . . . 3 . . . . . . . . . . . . . . . . . 10 . . . . . . . . Parts Scanalyzed 6 | . . . 3 . . . . . . . . . . . . . . . . 2 . . . 1 . . . . . . . . Part Schematics Acquired 6 | . . . 3 . . . . . . . . . . . . . . . . 2 . . . 1 . . . . . . . . Parts Damaged . | . . . . . . . . . . . . . . . . . . . . . . . . . . . . . . . . . Bothacking | -11 -10 -10 -9 -9 -9 -9 -7 -7 -6 -6 -6 -6 -6 -6 -5 -5 -5 -5 -4 -4 -4 -4 -4 -3 -3 -3 -3 -2 -2 -2 -1 -1 ------------ Run | Yrd Mat Min Mat Sto Gar Rec Fac Gar Fac Ext Cet Arc Hub Gar Fac Upp Upp War Pro Fac Gar Fac DSF Res Gar Res Tes Res Qua Frg Acc Com Used RIF Installer . | . . . . . . . . . . . . . . . . . . . . . . . . . . . . . . . . . Robots Hacked 42 | . . . . . . . . . . . . 3 . . 1 . . 5 2 . . . 1 9 1 3 . 11 . 3 . 3 Non-combat 3 | . . . . . . . . . . . . 3 . . . . . . . . . . . . . . . . . . . . Combat 38 | . . . . . . . . . . . . . . . 1 . . 5 2 . . . 1 9 1 3 . 11 . 3 . 2 Robot Hacks Applied 4 | . . . . . . . . . . . . 4 . . . . . . . . . . . . . . . . . . . . check_alert 4 | . . . . . . . . . . . . 4 . . . . . . . . . . . . . . . . . . . . Manual 1 | . . . . . . . . . . . . . . . . . . . . . . . . . . . . . . . . 1 Relay Couplers Released 93 | . . . . . 22 . . 27 4 . . . . 14 . . . . . . 8 . . . 13 . . 2 . . 3 . Machine Destruction 89 | . . . . . 22 . . 27 . . . . . 14 . . . . . . 8 . . . 13 . . 2 . . 3 . Programmers 4 | . . . . . . . . . 4 . . . . . . . . . . . . . . . . . . . . . . . Fabnet Peak Effective % 12 | . . . . . . . . . . . . . . . 12 12 12 12 4 4 4 4 4 9 9 9 9 6 6 6 1 1 Autooverrided 38 | . . . . . . . . . . . . . . . 1 . . 5 2 . . . 1 9 1 3 . 11 . 3 . 2 Robots Rewired 33 | . . . . . 3 . . 13 . 11 . . . . . . . 5 . . . . . . . . . . . . 1 . Allies Hacked 1 | . . . . . . . . . . . . . . . . . . 1 . . . . . . . . . . . . . . Hacks Repelled . | . . . . . . . . . . . . . . . . . . . . . . . . . . . . . . . . . Allies | -11 -10 -10 -9 -9 -9 -9 -7 -7 -6 -6 -6 -6 -6 -6 -5 -5 -5 -5 -4 -4 -4 -4 -4 -3 -3 -3 -3 -2 -2 -2 -1 -1 -------- Run | Yrd Mat Min Mat Sto Gar Rec Fac Gar Fac Ext Cet Arc Hub Gar Fac Upp Upp War Pro Fac Gar Fac DSF Res Gar Res Tes Res Qua Frg Acc Com Total Allies 100 | . . 4 . 2 3 . 1 13 2 20 5 . 2 . 1 . . 10 2 1 . . 1 9 2 4 . 11 1 3 1 2 Largest Group 14 | . . 4 3 2 3 . 1 3 3 11 14 13 10 . 1 . . 5 1 1 . . 1 4 1 2 . 2 1 1 1 1 Highest-Rated Group 865 | . . 71 63 62 72 . 10 129 129 457 865 819 609 . 29 . . 226 47 45 . . 47 199 64 87 . 128 45 37 25 82 Highest-Rated Ally 159 | . . 31 31 31 24 . 10 43 43 159 159 159 96 . 29 . . 49 47 45 . . 47 82 64 47 . 64 45 37 25 82 Initial Warlord ECA Mod 775 | . . . . . . 10 8 8 20 20 20 20 20 20 26 26 26 26 25 25 25 31 31 40 40 45 45 44 44 44 43 43 Total Orders 11 | . . . . . . . . 6 . . . 2 . . . . . . . . . . . . . . . . . . 3 . STAY 3 | . . . . . . . . 3 . . . . . . . . . . . . . . . . . . . . . . . . ROAM 1 | . . . . . . . . . . . . 1 . . . . . . . . . . . . . . . . . . . . FOLLOW 4 | . . . . . . . . 3 . . . 1 . . . . . . . . . . . . . . . . . . . . EXPLORE 3 | . . . . . . . . . . . . . . . . . . . . . . . . . . . . . . . 3 . Ally Attacks 599 | . . 15 24 16 15 . . 38 33 202 69 27 48 . 6 . . 55 4 . . . 4 24 5 4 . 8 . . . 2 Total Damage 15066 | . . 179 257 248 299 . . 1108 1064 3799 2173 893 1551 . 37 . . 2010 21 . . . 74 841 241 39 . 210 . . . 22 Kills 103 | . . 1 4 7 2 . . 7 10 30 10 4 12 . . . . 13 . . . . . 1 . . . 2 . . . . Allies Corrupted 1 | . . . . . . . . . . . . . . . . . . . . . . . . . . . . 1 . . . . Allies Melted 2 | . . . . . . . . . . 1 . . . . . . . . . . . . . . . . . 1 . . . . Intel | -11 -10 -10 -9 -9 -9 -9 -7 -7 -6 -6 -6 -6 -6 -6 -5 -5 -5 -5 -4 -4 -4 -4 -4 -3 -3 -3 -3 -2 -2 -2 -1 -1 ------- Run | Yrd Mat Min Mat Sto Gar Rec Fac Gar Fac Ext Cet Arc Hub Gar Fac Upp Upp War Pro Fac Gar Fac DSF Res Gar Res Tes Res Qua Frg Acc Com Active Infowar (turns) 13285 | . 575 317 665 129 1255 201 345 577 1130 922 87 2 109 231 532 170 99 538 322 603 90 192 149 915 118 488 326 1015 213 294 545 131 Optics 250 | . . . . . . . . . 248 . . . . . . . . . . . . . . . . . . 2 . . . . Sensors 6833 | . . . . . . . 336 290 693 . . . . . 370 170 99 538 322 603 5 191 149 75 2 480 326 1004 213 294 545 128 Terrain 210 | . . . . . . . . . . . . . . . . . . . . . . . . . . . 97 . . . 113 . Structural 10165 | . . . 664 129 1087 201 345 562 237 922 87 2 109 231 532 170 99 538 322 603 3 192 54 881 . 478 . 861 211 189 325 131 Seismic 325 | . . . . . 325 . . . . . . . . . . . . . . . . . . . . . . . . . . . Machine Analysis 1504 | . 575 317 612 . . . . . . . . . . . . . . . . . . . . . . . . . . . . . Triangulation 686 | . . . . . . . . . . . . . . . 296 168 99 123 . . . . . . . . . . . . . . Cloaking 666 | . . . . . . . . . . . . . . . . . . . . . . . . 338 73 . . . . 255 . . Jamming 265 | . . . . . . . . . . . . . . . . . . . . . . . . . . . . . . 265 . . ECM 2869 | . . . . . . . . . . . . . . . . 39 99 538 322 601 90 . . 274 73 464 278 91 . . . . Robot Analysis Total 8 | . . . 3 . . 1 . . 1 . . . . . . . . . . 3 . . . . . . . . . . . . Derelict Logs Recovered 6 | . . 1 . . . . . . . . . . . . . 1 1 . 3 . . . . . . . . . . . . . Drone Launches 4 | . . . . . . . . . . . . . . . . . . . . . . . . . . . . . . . 4 . Drone Recoveries 2 | . . . . . . . . . . . . . . . . . . . . . . . . . . . . . . . 2 . Exploration | -11 -10 -10 -9 -9 -9 -9 -7 -7 -6 -6 -6 -6 -6 -6 -5 -5 -5 -5 -4 -4 -4 -4 -4 -3 -3 -3 -3 -2 -2 -2 -1 -1 ------------- Run | Yrd Mat Min Mat Sto Gar Rec Fac Gar Fac Ext Cet Arc Hub Gar Fac Upp Upp War Pro Fac Gar Fac DSF Res Gar Res Tes Res Qua Frg Acc Com Turns Passed 17639 | 30 772 317 665 129 1255 462 347 1591 1174 922 399 890 109 942 532 170 99 538 322 603 132 193 391 1067 118 488 326 1015 213 364 545 519 Spaces Moved 28922 | 29 711 473 1095 215 1210 713 946 1259 2759 729 214 262 78 758 926 362 295 686 463 1361 207 373 354 2542 323 784 597 3634 735 1010 1721 1098 Core 173 | 29 70 . . . 19 . . 3 . 2 . 44 . 4 . . . . . . . . 2 . . . . . . . . . Treads 30 | . . . . . . . . 30 . . . . . . . . . . . . . . . . . . . . . . . . Legs 1627 | . . . . . . . . 499 . 298 214 218 78 320 . . . . . . . . . . . . . . . . . . Wheels . | . . . . . . . . . . . . . . . . . . . . . . . . . . . . . . . . . Hover . | . . . . . . . . . . . . . . . . . . . . . . . . . . . . . . . . . Flight 27092 | . 641 473 1095 215 1191 713 946 727 2759 429 . . . 434 926 362 295 686 463 1361 207 373 352 2542 323 784 597 3634 735 1010 1721 1098 Fastest Speed 6 | 50 37 37 34 34 34 34 28 23 20 20 123 123 123 20 17 32 32 27 27 26 23 27 23 14 19 19 15 10 6 6 10 15 Average Speed 31 | 50 38 37 34 34 34 34 28 79 22 65 123 303 123 64 24 32 32 29 27 26 24 32 35 24 19 25 17 10 9 10 15 16 Slowest Speed 1200 | 50 60 37 34 34 100 34 28 185 32 250 123 1200 123 260 87 32 32 32 27 27 27 35 550 45 19 31 26 72 10 20 80 85 Overloaded Moves 22 | . . . . . . . . . . . . . . . . . . . . . . . . . . . . . 9 13 . . Propulsion Burnouts . | . . . . . . . . . . . . . . . . . . . . . . . . . . . . . . . . . Robots Hopped 226 | . 16 . 7 4 4 13 6 1 7 2 . . . 2 1 . . 8 . 5 6 . 7 18 3 10 6 20 5 19 17 39 Potential Cave-ins 19 | . . . . . 4 . . . . . . . . . . . . . . . . . . . . . . . . 12 3 . Cave-ins Triggered 2 | . . . 1 . 1 . . . . . . . . . . . . . . . . . . . . . . . . . . . Teleports 2 | . . . . . . . . . . . . . . . . . . . . . . . . . . . . . 1 1 . . Exploration Rate (%) 60 | 3 79 87 86 53 86 95 31 88 63 81 78 90 10 82 36 54 47 91 71 44 44 12 96 67 50 21 59 88 74 36 54 37 Regions Visited 32 Branch Regions 15 Pre-discovered Areas 19 | . 3 . 3 . . 6 . . 3 2 . . . . . 1 . . 1 . . . . . . . . . . . . . Known Exits Taken 21 | . . 1 1 1 . . 1 . 1 1 . . 1 . 1 1 1 1 1 1 . 1 . 1 . 1 1 1 1 1 1 . Unknown Exits Taken 5 | 1 1 . . . . 1 . . . . 1 1 . . . . . . . . . . . . . . . . . . . . Scrap Searched 6 | . . 2 . . . . . . . . . . . . . 1 3 . . . . . . . . . . . . . . . Spaces Dug 446 | . . . 18 3 23 . 16 12 46 10 . . . 13 24 4 1 . 1 43 4 8 2 40 11 10 6 17 8 42 27 57 Terrain Destroyed 1016 | . 16 . 43 3 142 . 16 180 46 10 2 1 1 92 24 4 1 . 1 43 4 8 39 44 11 10 6 17 12 71 35 134 Melee 364 | . . . 18 3 10 . 16 12 46 10 . . . 13 24 4 1 . 1 43 4 8 2 40 11 10 6 17 7 14 18 26 Projectile 214 | . . . . . 15 . . 13 . . 2 1 1 8 . . . . . . . . 37 4 . . . . 5 57 17 54 AOE 438 | . 16 . 25 . 117 . . 155 . . . . . 71 . . . . . . . . . . . . . . . . . 54 Terrain Rammed 1 | . . . . . . . . . . . . . . 1 . . . . . . . . . . . . . . . . . . Walls Destroyed . | . . . . . . . . . . . . . . . . . . . . . . . . . . . . . . . . . Machines Disabled . | . . . . . . . . . . . . . . . . . . . . . . . . . . . . . . . . . Actions | -11 -10 -10 -9 -9 -9 -9 -7 -7 -6 -6 -6 -6 -6 -6 -5 -5 -5 -5 -4 -4 -4 -4 -4 -3 -3 -3 -3 -2 -2 -2 -1 -1 --------- Run | Yrd Mat Min Mat Sto Gar Rec Fac Gar Fac Ext Cet Arc Hub Gar Fac Upp Upp War Pro Fac Gar Fac DSF Res Gar Res Tes Res Qua Frg Acc Com Total 35472 | 36 1108 605 1299 265 1892 918 990 1658 3189 1090 331 330 86 1017 1184 409 297 1010 657 1526 246 429 488 2847 345 1020 767 4127 847 1204 1912 1343 Wait 4273 | . 354 120 121 16 520 215 12 109 294 210 99 28 1 68 179 34 2 278 194 96 14 40 32 130 . 211 92 332 56 118 98 200 Move 28498 | 28 680 472 1080 209 1200 686 935 1256 2745 724 213 261 77 754 923 361 294 676 462 1351 195 372 340 2509 315 765 584 3601 725 976 1689 1040 Hop 167 | . 14 . 7 2 4 13 5 1 6 2 . . . 1 1 . . 1 . 5 5 . 6 14 3 8 6 12 4 14 14 19 Pick Up 133 | 1 3 . 6 2 3 . 6 7 7 1 2 7 1 14 9 . . 2 . 5 . . . 22 . 3 2 15 3 8 1 3 Fast Attach 292 | 4 3 2 4 . 9 1 2 25 12 12 1 4 . 22 14 5 . 9 . 5 1 3 15 36 . 1 17 30 8 14 23 10 Attach 116 | . 1 . 5 . 3 . 5 8 4 4 . . . 10 7 . . 1 . 4 3 2 2 10 2 2 5 8 1 14 3 12 Detach 46 | . . . . . 2 1 . 2 . 2 1 1 . . 1 . . . . 1 2 1 1 5 . . 3 4 . 8 4 7 Swap 134 | . 8 1 9 3 11 1 2 5 4 5 6 7 . 9 4 . . 3 . . 2 1 4 10 3 . 5 11 4 7 6 3 Drop 279 | . . 2 7 4 5 1 3 18 14 5 . 3 1 14 18 5 . 14 . 8 1 . 7 34 2 . 14 44 13 18 17 7 Fire 528 | 3 45 8 23 . 82 . . 78 2 9 9 3 2 87 . . . 1 . 1 . . 72 10 1 12 18 16 7 6 25 8 Melee 705 | . . . 37 3 35 . 20 45 74 43 . 16 2 35 28 4 1 4 1 50 23 10 8 67 19 18 17 54 8 21 29 33 Ram 1 | . . . . . . . . . . . . . . 1 . . . . . . . . . . . . . . . . . . Kick 2 | . . . . . . . . . . . . . 2 . . . . . . . . . . . . . . . . . . . Crush . | . . . . . . . . . . . . . . . . . . . . . . . . . . . . . . . . . Escape Stasis 98 | . . . . 26 1 . . 19 27 . . . . 2 . . . . . . . . 1 . . . 4 . 18 . . . Rewire 199 | . . . . . 16 . . 85 . 73 . . . . . . . 21 . . . . . . . . . . . . 3 1 Trap 1 | . . . . . 1 . . . . . . . . . . . . . . . . . . . . . . . . . . . Miscellaneous . | . . . . . . . . . . . . . . . . . . . . . . . . . . . . . . . . . Route ------- -11/Scrapyard -10/Materials (discovered 6 exits: *Mat x3 / [*Min x2] / Sub) -10/Mines -9/Materials (discovered 7 exits: *Mat x3 / [*Min x2] / *Sto x2) -9/Storage -9/Garrison (discovered 3 exits: *Rec x3) -9/Recycling (discovered 2 exits: *Fac / Scr) -7/Factory (discovered 4 exits: *Fac / Low x2 / Gar) -7/Garrison (discovered 3 exits: *Fac x3) -6/Factory (discovered 8 exits: *Fac x4 / *Low x2 / *Ext x2) -6/Extension (discovered 3 exits: *Fac x2 / *Cet) -6/Cetus (discovered 2 exits: *Fac / [*Arc]) -6/Archives (discovered 3 exits: *Fac / *Hub x2) -6/Hub_04(d) -6/Garrison (discovered 3 exits: *Fac x3) -5/Factory (discovered 3 exits: *Fac x2 / *Upp) -5/Upper Caves -5/Upper Caves -5/Warlord -4/Proximity Caves -4/Factory (discovered 8 exits: *Res x4 / *Upp x2 / Arm / Gar) -4/Garrison (discovered 3 exits: *Fac x3) -4/Factory -4/DSF -3/Research (discovered 8 exits: *Res x3 / *Tes x2 / Gar / Gar / Gar) -3/Garrison (discovered 3 exits: *Res x3) -3/Research (discovered 2 exits: *Res / *Tes) -3/Testing -2/Research (discovered 3 exits: *Acc x2 / *Qua) -2/Quarantine (discovered 3 exits: *Acc / *Sec / *Frg) -2/Protoforge -1/Access -1/Command Free Derelict Territories History --------- Turn | Location | Event 7 | -11/Scrapyard | Discovered new exit (range 15) 31 | -11/Scrapyard | Entered Materials 237 | -10/Materials | Discovered new exit (range 15) 270 | -10/Materials | Repaired Flight Unit 297 | -10/Materials | Repaired Flight Unit 327 | -10/Materials | Discovered new exit (range 14) 366 | -10/Materials | Discovered new exit (range 17) 404 | -10/Materials | Discovered new exit (range 15) 478 | -10/Materials | Identified exit to Materials 509 | -10/Materials | Destroyed 7 combat bots 542 | -10/Materials | Build established: Scavenger-Mutant 597 | -10/Materials | Identified exit to Subcaves 597 | -10/Materials | Learned location of 1 exit from Materials 643 | -10/Materials | Learned Storage stockpile data 735 | -10/Materials | Learned location of 2 exits from Materials 780 | -10/Materials | Learned Storage stockpile data 803 | -10/Materials | Entered Mines 812 | -10/Mines | Learned Materials emergency access door positions 877 | -10/Mines | Received a Mining Laser from a helpful Derelict 914 | -10/Mines | Assisted by bots powering up and referring to "LRC-V3" 1078 | -10/Mines | Discovered exit to Materials (range 13) 1082 | -10/Mines | Joined a pair of Derelicts in attacking an 0b10 outpost 1120 | -10/Mines | Entered Materials 1120 | -9/Materials | Accompanied by 3 allies 1120 | -9/Materials | Evolved 2 slots: Propulsion x1, Utility x1 1121 | -9/Materials | Identified exit to Storage 1121 | -9/Materials | Identified exit to Materials 1207 | -9/Materials | Discovered new exit (range 16) 1294 | -9/Materials | Discovered new exit (range 14) 1324 | -9/Materials | Repaired Flight Unit 1378 | -9/Materials | Discovered exit to Materials (range 5) 1484 | -9/Materials | Crushed by falling debris 1489 | -9/Materials | Learned location of Storage (-9) 1544 | -9/Materials | Loaded intel: 58 machine locations 1640 | -9/Materials | Learned Recycling recycling unit intel 1650 | -9/Materials | Loaded intel: 9 trap records 1701 | -9/Materials | Learned Storage machine intel 1704 | -9/Materials | Central database locked down 1785 | -9/Materials | Entered Storage 1787 | -9/Storage | Loaded intel: 48 machine locations 1837 | -9/Storage | Met a pair of Derelict thieves 1914 | -9/Storage | Identified exit to Garrison 1914 | -9/Storage | Entered Garrison 1928 | -9/Garrison | Discovered new exit (range 44) 1928 | -9/Garrison | Discovered new exit (range 55) 1928 | -9/Garrison | Discovered new exit (range 75) 1935 | -9/Garrison | Garrison Relay disabled 2004 | -9/Garrison | Triggered checkpoint 2009 | -9/Garrison | Garrison Relay disabled 2086 | -9/Garrison | Crushed by falling debris 2087 | -9/Garrison | System corruption reached 10% 2088 | -9/Garrison | Garrison Relay disabled 2093 | -9/Garrison | Garrison Relay disabled 2097 | -9/Garrison | Triggered checkpoint 2152 | -9/Garrison | Garrison Relay disabled 2176 | -9/Garrison | Triggered checkpoint 2237 | -9/Garrison | Garrison Relay disabled 2242 | -9/Garrison | Triggered checkpoint 2356 | -9/Garrison | Triggered checkpoint 2406 | -9/Garrison | Build established: Mutant 3024 | -9/Garrison | Triggered checkpoint 3049 | -9/Garrison | Lost 3 allies 3169 | -9/Garrison | Entered Recycling 3170 | -9/Recycling | Loaded intel: 5 recycling unit locations 3263 | -9/Recycling | Discovered new exit (range 7) 3312 | -9/Recycling | Core integrity fell below 50% 3346 | -9/Recycling | Scanned before Scraplab entrance 3375 | -9/Recycling | Learned location of Zion (-6) 3419 | -9/Recycling | Learned Storage stockpile data 3455 | -9/Recycling | Learned 8 Materials zone layouts 3479 | -9/Recycling | Identified exit to Scraptown 3495 | -9/Recycling | Learned Materials stockpile data 3517 | -9/Recycling | Learned 2 Materials zone layouts 3542 | -9/Recycling | Learned Materials stockpile data 3544 | -9/Recycling | Build established: Hacker-Mutant 3578 | -9/Recycling | Learned 2 Storage zone layouts 3631 | -9/Recycling | Entered Factory 3631 | -7/Factory | Evolved 4 slots: Propulsion x2, Utility x2 3701 | -7/Factory | Fabricated Hacking Suite (x1) 3775 | -7/Factory | Identified exit to Lower Caves 3819 | -7/Factory | Discovered new exit (range 16) 3978 | -7/Factory | Identified exit to Garrison 3978 | -7/Factory | Entered Garrison 3978 | -7/Garrison | Accompanied by 1 ally 4014 | -7/Garrison | Garrison Relay disabled 4020 | -7/Garrison | Triggered checkpoint 4074 | -7/Garrison | Triggered checkpoint 4169 | -7/Garrison | Phase Generator disabled 4196 | -7/Garrison | Triggered checkpoint 4220 | -7/Garrison | Triggered checkpoint 4251 | -7/Garrison | Core integrity fell below 50% 4289 | -7/Garrison | Lost 8 allies 4296 | -7/Garrison | Lost 8 parts (1p4n2u1w) 4359 | -7/Garrison | Garrison Relay disabled 4539 | -7/Garrison | Triggered checkpoint 4652 | -7/Garrison | Found Hvy. Reflective Plating 4709 | -7/Garrison | Discovered new exit (range 11) 4749 | -7/Garrison | Triggered checkpoint 4762 | -7/Garrison | Garrison Relay disabled 4788 | -7/Garrison | Garrison Relay disabled 4882 | -7/Garrison | Build established: Scavenger-Mutant 4971 | -7/Garrison | Core integrity fell below 20% 5008 | -7/Garrison | Triggered checkpoint 5031 | -7/Garrison | Garrison Relay disabled 5094 | -7/Garrison | Discovered new exit (range 14) 5120 | -7/Garrison | Learned Factory security intel 5301 | -7/Garrison | Discovered new exit (range 10) 5312 | -7/Garrison | Garrison Relay disabled 5316 | -7/Garrison | Triggered checkpoint 5348 | -7/Garrison | Lost 3 allies 5350 | -7/Garrison | Triggered checkpoint 5350 | -7/Garrison | Garrison Relay disabled 5362 | -7/Garrison | Lost 3 parts (1p2n) 5409 | -7/Garrison | Identified exit to Factory 5444 | -7/Garrison | Triggered checkpoint 5569 | -7/Garrison | Entered Factory 5569 | -6/Factory | Accompanied by 3 allies 5569 | -6/Factory | Evolved 2 slots: Propulsion x1, Utility x1 5618 | -6/Factory | Repaired Katana 5712 | -6/Factory | Fabricated Shield Leg (x1) 5753 | -6/Factory | Discovered new exit (range 15) 5758 | -6/Factory | Discovered new exit (range 12) 5769 | -6/Factory | Build established: Scavenger-Sprinter 5802 | -6/Factory | Identified exit to Factory 5919 | -6/Factory | First assault squad dispatched 5953 | -6/Factory | Discovered exit to Factory (range 9) 6173 | -6/Factory | Learned location of 1 exit from Proximity Caves 6193 | -6/Factory | Fabricated Imp. Thunder Leg? 6249 | -6/Factory | Learned Extension emergency access door positions 6317 | -6/Factory | Learned Extension trap positions 6375 | -6/Factory | Learned location of Warlord (-5) 6416 | -6/Factory | Identified exit to Lower Caves 6512 | -6/Factory | Identified exit to Extension 6619 | -6/Factory | Search patrols dispatched 6640 | -6/Factory | Fabricated Plasma Cutter (x2) 6646 | -6/Factory | Learned location of Extension (-6) 6743 | -6/Factory | Entered Extension 6744 | -6/Extension | Loaded intel: 16 trap records 6805 | -6/Extension | Rescued a captive Derelict 6832 | -6/Extension | Rescued a captive Derelict 6878 | -6/Extension | Lost 4 allies 6935 | -6/Extension | Rescued a captive Derelict 6952 | -6/Extension | Rescued A7 6962 | -6/Extension | Rescued a captive Derelict 6987 | -6/Extension | Spotted B-75 Beast 7041 | -6/Extension | Spotted B-75 Beast 7048 | -6/Extension | Allies destroyed B-75 Beast 7072 | -6/Extension | Allies destroyed B-75 Beast 7086 | -6/Extension | Lost 4 allies 7097 | -6/Extension | Lost 5 parts (4n1u) 7154 | -6/Extension | Rescued a captive Derelict 7169 | -6/Extension | Rescued a captive Derelict 7205 | -6/Extension | Rescued a captive Derelict 7206 | -6/Extension | Rescued a captive Derelict 7325 | -6/Extension | Identified exit to Cetus 7387 | -6/Extension | Build established: Hacker-Mutant 7395 | -6/Extension | Learned location of 1 exit from Cetus 7443 | -6/Extension | First assault squad dispatched 7504 | -6/Extension | Learned location of Upper Caves (-5) 7596 | -6/Extension | Learned location of 1 exit from Lower Caves 7658 | -6/Extension | Learned Extension trap positions 7665 | -6/Extension | Entered Cetus 7665 | -6/Cetus | Accompanied by 11 allies (A7) 7670 | -6/Cetus | Acquired a Cetus Manufacturing Module code from A7 7695 | -6/Cetus | Spotted Cetus Guard 7695 | -6/Cetus | Spotted Cetus Guard 7697 | -6/Cetus | Spotted Cetus Guard 7703 | -6/Cetus | Allies destroyed Cetus Guard 7704 | -6/Cetus | Allies destroyed Cetus Guard 7704 | -6/Cetus | Spotted Cetus Guard 7709 | -6/Cetus | Allies destroyed Cetus Guard 7715 | -6/Cetus | Allies destroyed Cetus Guard 7785 | -6/Cetus | Started Cetus Manufacturing Module 7793 | -6/Cetus | Escorted A7 to Cetus Mainframe 7810 | -6/Cetus | Manufactured an Enhanced Grunt 7835 | -6/Cetus | Manufactured an Enhanced Grunt 7860 | -6/Cetus | Manufactured an Enhanced Grunt 7885 | -6/Cetus | Manufactured an Enhanced Grunt 7910 | -6/Cetus | Manufactured an Enhanced Grunt 7913 | -6/Cetus | Discovered new exit (range 15) 7936 | -6/Cetus | Spotted Cetus Guard 7936 | -6/Cetus | Spotted Cetus Guard 7939 | -6/Cetus | Spotted Cetus Guard 7943 | -6/Cetus | Spotted Cetus Guard 7953 | -6/Cetus | Allies destroyed Cetus Guard 7965 | -6/Cetus | Allies destroyed Cetus Guard 7966 | -6/Cetus | Allies destroyed Cetus Guard 7967 | -6/Cetus | Allies destroyed Cetus Guard 7982 | -6/Cetus | Met Revision 17 8064 | -6/Cetus | Entered Archives 8064 | -6/Archives | Accompanied by 13 allies (A7) 8069 | -6/Archives | Received a hacking code to weaken MAIN.C 8114 | -6/Archives | Discovered exit to Factory (range 14) 8180 | -6/Archives | Discovered new exit (range 16) 8333 | -6/Archives | Discovered new exit (range 16) 8453 | -6/Archives | Build established: Scavenger-Mutant 8954 | -6/Archives | Entered Hub_04(d) 8954 | -6/Hub_04(d) | Accompanied by 10 allies 8999 | -6/Hub_04(d) | Identified exit to Garrison 9003 | -6/Hub_04(d) | Found Prototype Device 9028 | -6/Hub_04(d) | Garrison activated, responded to threat 9063 | -6/Hub_04(d) | Entered Garrison 9075 | -6/Garrison | Identified Exp. Thermal Shield 9086 | -6/Garrison | Lost 4 allies 9409 | -6/Garrison | Triggered checkpoint 9539 | -6/Garrison | Spotted B-75 Beast 9541 | -6/Garrison | Triggered checkpoint 9579 | -6/Garrison | Destroyed B-75 Beast 9647 | -6/Garrison | Triggered checkpoint 9651 | -6/Garrison | Core integrity fell below 50% 9651 | -6/Garrison | Triggered checkpoint 9719 | -6/Garrison | Core integrity fell below 20% 9747 | -6/Garrison | Lost 12 parts (1p5n3u3w) 9809 | -6/Garrison | Triggered checkpoint 9809 | -6/Garrison | Garrison Relay disabled 9889 | -6/Garrison | Discovered exit to Factory (range 14) 9900 | -6/Garrison | Discovered exit to Factory (range 74) 9900 | -6/Garrison | Discovered exit to Factory (range 59) 9900 | -6/Garrison | Discovered exit to Factory (range 7) 9933 | -6/Garrison | Phase Generator disabled 9953 | -6/Garrison | Garrison Relay disabled 9957 | -6/Garrison | Triggered checkpoint 9968 | -6/Garrison | Learned Factory security intel 9971 | -6/Garrison | Garrison Relay disabled 9993 | -6/Garrison | Triggered checkpoint 10005 | -6/Garrison | Entered Factory 10005 | -5/Factory | Evolved 2 slots: Power x1, Propulsion x1 10051 | -5/Factory | Build established: Scavenger-Sprinter 10077 | -5/Factory | Local machine network offline 10135 | -5/Factory | Discovered new exit (range 16) 10226 | -5/Factory | Discovered new exit (range 4) 10227 | -5/Factory | Identified exit to Factory 10305 | -5/Factory | First assault squad dispatched 10307 | -5/Factory | Discovered new exit (range 5) 10308 | -5/Factory | Identified exit to Upper Caves 10537 | -5/Factory | Entered Upper Caves 10614 | -5/Upper Caves | Build established: Hacker-Ninja 10614 | -5/Upper Caves | Met a Warlord Commander 10616 | -5/Upper Caves | Warlord Commander delivered Encrypted Comm Array 10616 | -5/Upper Caves | Found Encrypted Comm Array 10678 | -5/Upper Caves | Learned Factory emergency access door positions 10705 | -5/Upper Caves | Discovered new exit (range 9) 10707 | -5/Upper Caves | Identified exit to Upper Caves 10707 | -5/Upper Caves | Entered another Upper Caves area 10783 | -5/Upper Caves | Identified exit to Warlord 10806 | -5/Upper Caves | Entered Warlord 10816 | -5/Warlord | System corruption cleaned by Quarantine Array 10851 | -5/Warlord | Visited the Vortex Lab 10855 | -5/Warlord | Found Prototype Launcher 10855 | -5/Warlord | Identified Vortex Catalyst Activator 10857 | -5/Warlord | Found Prototype Energy Gun 10857 | -5/Warlord | Identified Vortex Rifle 10873 | -5/Warlord | Warlord's base attacked by MAIN.C 10895 | -5/Warlord | Met Warlord 10930 | -5/Warlord | Found Prototype Device 10930 | -5/Warlord | Identified Exp. Focal Shield 10932 | -5/Warlord | Found Prototype Processor 10932 | -5/Warlord | Identified Exp. Armor Integrity Analyzer 10935 | -5/Warlord | Found Prototype Hackware 10939 | -5/Warlord | Found Prototype Reactor 10939 | -5/Warlord | Identified Vortex Chain Reactor 11187 | -5/Warlord | Lost 4 allies 11223 | -5/Warlord | Warlord forces counterattacked 11267 | -5/Warlord | Lost 3 allies 11305 | -5/Warlord | Spotted Striker 11308 | -5/Warlord | Spotted Striker 11323 | -5/Warlord | Destroyed Striker 11332 | -5/Warlord | Discovered new exit (range 8) 11334 | -5/Warlord | Identified exit to Proximity Caves 11344 | -5/Warlord | Entered Proximity Caves 11374 | -4/Proximity Caves | Lost 11 allies 11385 | -4/Proximity Caves | Learned location of 1 exit from Research 11424 | -4/Proximity Caves | Learned Research stockpile data 11666 | -4/Proximity Caves | Entered Factory 11666 | -4/Factory | Evolved 2 slots: Propulsion x1, Utility x1 11759 | -4/Factory | Identified Ghost Barrier 11843 | -4/Factory | Discovered new exit (range 5) 11846 | -4/Factory | Identified exit to Research 11920 | -4/Factory | Discovered new exit (range 7) 11937 | -4/Factory | Learned Armory trap positions 11972 | -4/Factory | Discovered exit to Research (range 12) 11988 | -4/Factory | Identified exit to Upper Caves 11988 | -4/Factory | Identified exit to Armory 12078 | -4/Factory | Learned Research security intel 12131 | -4/Factory | Learned location of 1 exit from Quarantine 12175 | -4/Factory | Learned Research emergency access door positions 12207 | -4/Factory | Loaded intel: 8 recycling unit locations 12230 | -4/Factory | Loaded intel: 25 terminal locations 12263 | -4/Factory | Learned location of 3 exits from Research 12269 | -4/Factory | Identified exit to Garrison 12269 | -4/Factory | Entered Garrison 12298 | -4/Garrison | Discovered new exit (range 40) 12298 | -4/Garrison | Discovered new exit (range 77) 12298 | -4/Garrison | Discovered new exit (range 70) 12299 | -4/Garrison | Triggered checkpoint 12299 | -4/Garrison | Garrison Relay disabled 12327 | -4/Garrison | Triggered checkpoint 12328 | -4/Garrison | Triggered checkpoint 12330 | -4/Garrison | Triggered checkpoint 12336 | -4/Garrison | Spotted B-86 Titan 12336 | -4/Garrison | Spotted B-86 Titan 12373 | -4/Garrison | Triggered checkpoint 12375 | -4/Garrison | Garrison Relay disabled 12401 | -4/Garrison | Identified exit to Factory 12401 | -4/Garrison | Entered Factory 12573 | -4/Factory | Identified exit to DSF 12594 | -4/Factory | Entered DSF 12624 | -4/DSF | Additional patrols routed to DSF 12631 | -4/DSF | Local machine network offline 12650 | -4/DSF | Discovered exit to Research (range 15) 12656 | -4/DSF | Lost 3 parts (2p1n) 12757 | -4/DSF | Lost 7 parts (1p4n1u1w) 12768 | -4/DSF | Core integrity fell below 50% 12934 | -4/DSF | Sterilization system engaged 12949 | -4/DSF | Core integrity fell below 20% 12954 | -4/DSF | Ambient heat levels rising (+10) 12969 | -4/DSF | Ambient heat levels rising (+10) 12984 | -4/DSF | Ambient heat levels rising (+10) 12985 | -4/DSF | Entered Research 12985 | -3/Research | Evolved 2 slots: Propulsion x1, Utility x1 12986 | -3/Research | Identified exit to Research 12986 | -3/Research | Identified exit to Testing 12997 | -3/Research | Lost 6 parts (1p3n1u1w) 13067 | -3/Research | Build established: Mutant 13185 | -3/Research | Revision forces began assault on 0b10 13247 | -3/Research | Lost 7 parts (2n2u3w) 13343 | -3/Research | Identified exit to Garrison 13358 | -3/Research | Spotted B-86 Titan 13375 | -3/Research | Destroyed B-86 Titan 13593 | -3/Research | Fabricated Adv. Hacking Suite (x1) 13671 | -3/Research | Identified exit to Garrison 13673 | -3/Research | Spotted B-86 Titan 13685 | -3/Research | Research terminal network offline 13782 | -3/Research | Spotted Striker 13824 | -3/Research | Repaired Electron Diverter? 13825 | -3/Research | Spotted B-86 Titan 13837 | -3/Research | Discovered exit to Testing (range 13) 13902 | -3/Research | Build established: Hacker-Sprinter 13979 | -3/Research | Local machine network offline 13991 | -3/Research | Repaired Stasis Canceller? 14024 | -3/Research | Spotted Executioner 14024 | -3/Research | Spotted Striker 14051 | -3/Research | Identified exit to Garrison 14052 | -3/Research | Entered Garrison 14081 | -3/Garrison | Garrison Relay disabled 14102 | -3/Garrison | Spotted B-86 Titan 14106 | -3/Garrison | Triggered checkpoint 14106 | -3/Garrison | Triggered checkpoint 14120 | -3/Garrison | Discovered new exit (range 8) 14121 | -3/Garrison | Identified exit to Research 14121 | -3/Garrison | Attempted to access garrison exit controls, blocked by remote lockdown 14124 | -3/Garrison | Rescued a captive Derelict 14127 | -3/Garrison | Rescued a captive Derelict 14128 | -3/Garrison | Triggered checkpoint 14128 | -3/Garrison | Garrison Relay disabled 14147 | -3/Garrison | Garrison Relay disabled 14162 | -3/Garrison | Triggered checkpoint 14170 | -3/Garrison | Entered Research 14223 | -3/Research | Local machine network offline 14332 | -3/Research | Discovered exit to Research (range 3) 14333 | -3/Research | Discovered exit to Testing (range 11) 14389 | -3/Research | Spotted B-86 Titan 14600 | -3/Research | Build established: Infiltrator-Ninja 14658 | -3/Research | Entered Testing 14679 | -3/Testing | Found Prototype Launcher 14679 | -3/Testing | Identified Z-bomb Delivery System 14688 | -3/Testing | Lost 3 parts (1n1u1w) 14709 | -3/Testing | Found Prototype Device 14709 | -3/Testing | Identified 2N-1CE's Frost Array 14740 | -3/Testing | Found Prototype Device 14740 | -3/Testing | Identified Adv. Kinecellerator 14772 | -3/Testing | Found Prototype Processor 14772 | -3/Testing | Identified Spectral Analyzer 14919 | -3/Testing | Discovered exit to Research (range 14) 14930 | -3/Testing | Found Prototype Energy Gun 14930 | -3/Testing | Identified Warp Gun 14968 | -3/Testing | Garrison activated, responded to threat 14984 | -3/Testing | Entered Research 14984 | -2/Research | Warlord forces began assault on 0b10 14984 | -2/Research | Evolved 2 slots: Propulsion x1, Utility x1 14998 | -2/Research | Local machine network offline 15009 | -2/Research | Distinguished unit "Shockpunchers" dispatched to help 15009 | -2/Research | Distinguished unit "Smaug Mourners" dispatched to help 15044 | -2/Research | Met up with Warlord 15078 | -2/Research | Spotted B-90 Cyclops 15094 | -2/Research | Found Prototype Launcher 15094 | -2/Research | Identified Enh. Gamma Bomb Array 15155 | -2/Research | Lost 3 allies 15156 | -2/Research | Found Prototype Hackware 15156 | -2/Research | Identified Exp. Hacking Suite 15162 | -2/Research | Found Prototype Device 15162 | -2/Research | Identified Exp. Shock Absorption System 15185 | -2/Research | Discovered new exit (range 4) 15361 | -2/Research | Borebot progress halted 15429 | -2/Research | Spotted Striker 15475 | -2/Research | Found Prototype Processor 15475 | -2/Research | Identified Exp. Signal Interpreter 15555 | -2/Research | Build established: Hacker-Scout 15653 | -2/Research | Discovered new exit (range 13) 15655 | -2/Research | Identified exit to Access 15733 | -2/Research | Borebot progress halted 15753 | -2/Research | Spotted Striker 15758 | -2/Research | Spotted Executioner 15758 | -2/Research | Spotted Executioner 15778 | -2/Research | Spotted 75-F6Q(H) 15793 | -2/Research | Lost 3 allies 15872 | -2/Research | Discovered exit to Access (range 8) 15875 | -2/Research | Borebot progress halted 15988 | -2/Research | Warlord invited to help at Command 15988 | -2/Research | Given Cave Seal Controls access code 15999 | -2/Research | Identified exit to Quarantine 15999 | -2/Research | Entered Quarantine 16043 | -2/Quarantine | Found Alien Energy Cannon 16061 | -2/Quarantine | Found Alien Artifact 16061 | -2/Quarantine | Identified Dimensional Node Initializer 16061 | -2/Quarantine | Initialized slip node 16065 | -2/Quarantine | Found Dimensional Node Initializer 16112 | -2/Quarantine | Found Alien Artifact 16113 | -2/Quarantine | Found Alien Artifact 16113 | -2/Quarantine | Identified Hpw. Transdimensional Reconstructor (x2) 16113 | -2/Quarantine | Warped through subspace to slip node 16204 | -2/Quarantine | Spotted Fortress 16211 | -2/Quarantine | Discovered new exit (range 6) 16211 | -2/Quarantine | Discovered new exit (range 7) 16212 | -2/Quarantine | Identified exit to Section 7 16212 | -2/Quarantine | Identified exit to Protoforge 16212 | -2/Quarantine | Entered Protoforge 16243 | -2/Protoforge | Identified Core Cannon 16288 | -2/Protoforge | Spotted Hotshot 16288 | -2/Protoforge | Spotted Hotshot 16288 | -2/Protoforge | Spotted Hotshot 16348 | -2/Protoforge | Spotted AP7-3 16355 | -2/Protoforge | Spotted AP7-3 16372 | -2/Protoforge | Spotted Hotshot 16372 | -2/Protoforge | Spotted Hotshot 16372 | -2/Protoforge | Spotted Hotshot 16375 | -2/Protoforge | Spotted Hotshot 16375 | -2/Protoforge | Spotted Hotshot 16391 | -2/Protoforge | Discovered exit to Access (range 5) 16392 | -2/Protoforge | Initialized slip node 16401 | -2/Protoforge | Found Prototype Device 16401 | -2/Protoforge | Identified Exp. System Purifier 16403 | -2/Protoforge | Found Exp. System Purifier 16417 | -2/Protoforge | Additional patrols dispatched to research labs 16417 | -2/Protoforge | Superfortress began startup sequence 16430 | -2/Protoforge | Found Prototype Device 16430 | -2/Protoforge | Identified Crosscalibrator 16433 | -2/Protoforge | Spotted Decapitator 16433 | -2/Protoforge | Spotted Decapitator 16433 | -2/Protoforge | Spotted Decapitator 16433 | -2/Protoforge | Spotted Immortal 16433 | -2/Protoforge | Spotted Immortal 16462 | -2/Protoforge | First assault squad dispatched 16462 | -2/Protoforge | Found Prototype Device 16462 | -2/Protoforge | Identified Exp. Kinecellerator 16464 | -2/Protoforge | Found Prototype Device 16464 | -2/Protoforge | Identified Exp. Force Booster 16466 | -2/Protoforge | Found Cep. Networked Targeting System 16471 | -2/Protoforge | Spotted Immortal 16471 | -2/Protoforge | Spotted Immortal 16471 | -2/Protoforge | Spotted Immortal 16492 | -2/Protoforge | Found Prototype Device 16492 | -2/Protoforge | Identified Cep. Hardlight Director 16496 | -2/Protoforge | Found Prototype Device 16496 | -2/Protoforge | Identified Exp. Remote Shield 16498 | -2/Protoforge | Found Exp. Remote Shield 16499 | -2/Protoforge | Found Prototype Device 16499 | -2/Protoforge | Identified Cep. Beam Splitter 16504 | -2/Protoforge | Spotted V921-f 16504 | -2/Protoforge | Spotted V445-n 16504 | -2/Protoforge | Spotted V614-r 16504 | -2/Protoforge | Spotted V169-o 16515 | -2/Protoforge | Spotted V180-u 16517 | -2/Protoforge | Spotted V419-t 16517 | -2/Protoforge | Spotted V216-b 16520 | -2/Protoforge | Spotted V040-x 16534 | -2/Protoforge | Spotted Decapitator 16537 | -2/Protoforge | Spotted V466-h 16537 | -2/Protoforge | Spotted V769-k 16538 | -2/Protoforge | Spotted Immortal 16538 | -2/Protoforge | Spotted Immortal 16543 | -2/Protoforge | Lost 3 parts (2u1w) 16545 | -2/Protoforge | Spotted V016-s 16547 | -2/Protoforge | Found Prototype Power Core 16547 | -2/Protoforge | Identified Cep. Zero-point Core 16563 | -2/Protoforge | Found Cep. Chromion Battery 16570 | -2/Protoforge | System corruption reached 10% 16572 | -2/Protoforge | Warped through subspace to slip node 16573 | -2/Protoforge | Core integrity fell below 50% 16576 | -2/Protoforge | Entered Access 16576 | -1/Access | Evolved 2 slots: Utility x2 16602 | -1/Access | Lost 5 parts (3n2u) 16662 | -1/Access | Garrison activated, responded to threat 16717 | -1/Access | P-80 Master assimilated allied 61-UWL(g) 16836 | -1/Access | Lost 4 allies 16932 | -1/Access | Garrison activated, responded to threat 16985 | -1/Access | Build established: Scavenger-Scout 17076 | -1/Access | First assault squad dispatched 17120 | -1/Access | Spotted B-99 Colossus 17120 | -1/Access | Discovered new exit (range 4) 17121 | -1/Access | Identified exit to Command 17121 | -1/Access | Entered Command 17152 | -1/Command | Spotted B-99 Colossus 17182 | -1/Command | Disengaged cave seal 17183 | -1/Command | Welcomed Warlord to Command 17244 | -1/Command | Lost 3 allies 17244 | -1/Command | Phase Generator disabled 17258 | -1/Command | Disengaged cave seal 17258 | -1/Command | Derelicts emerged from the dark tunnel 17368 | -1/Command | Spotted Alpha 7 17385 | -1/Command | Spotted Alpha 7 17385 | -1/Command | Spotted Striker 17398 | -1/Command | Spotted Executioner 17414 | -1/Command | Lost 3 allies 17419 | -1/Command | Build established: Sprinter 17421 | -1/Command | Spotted M Guard 17421 | -1/Command | Spotted M Guard 17421 | -1/Command | Spotted Combat Programmer 17431 | -1/Command | Spotted Combat Programmer 17469 | -1/Command | P-80 Master assimilated allied F5-W9U(l) 17484 | -1/Command | Warlord commented on Warlord statues 17489 | -1/Command | All MAIN.C guards destroyed 17513 | -1/Command | Lost 4 parts (2n1u1w) 17516 | -1/Command | Lost 13 allies 17577 | -1/Command | Met MAIN.C 17577 | -1/Command | Hacked MAIN.C using A7's code 17602 | -1/Command | 0b10 Conduit disabled 17630 | -1/Command | MAIN.C activated Command garrisons 17640 | *** | Establishing Free Derelict Territories! Last Messages --------------- 17632_ WX-MFN(L) sneak attacks. 17632_ MAIN.C suffers critical hit (Destroy). 17632_ MAIN.C reaction time slowed by virus. 17633_ WX-MFN(L) sneak attacks. 17633_ Beam penetrates MAIN.C. 17633_ WX-MFN(L) knocked back. 17635_ Beam penetrates MAIN.C. 17635_ Beam penetrates 0b10 Conduit. 17635_ MAIN.C suffers critical hit (Burn). 17636_ MAIN.C reaction time slowed by virus. 17637_ MAIN.C suffers critical hit (Destroy). 17637_ MAIN.C reaction time slowed by virus. 17638_ MAIN.C: "I hope you know you're still going to DIE HERE WITH ME!" 17638_ MAIN.C destroyed. ZY-L1N: Victory! Sure there's still lots to do, but without MAIN.C at the helm 0b10 doesn't stand a chance. We've got this... Map ----- +----------------------------------------------------+ | ?????????????????????????????????????????????????? | | ?????????????????????????????????????????????????? | | ?????????????????????????????????????????????????? | | ?????????????????????????????????????????????????? | | ?????????????????????????????????????????????????? | | ?????????????????????????????????????????????????? | | ?????????????????????????????????????????????????? | | ??????????????????????????? ????????????????????? | | ???????????????????????????# ##?????????????????? | | ???????????????????????????## ##?????????????????? | | ???????????????????????????## #?????????????????? | | ?????????????????????????????# ##???????????????? | | ?????????????????????????????## ###??????????????? | | ?????????????????????????????## ##??????????????? | | ??????????????????????????????## ##?????????????? | | ???????????????????????????????## ####???????????? | | ?????????????#################### ###???????????? | | ?????????????##################### ###??????????? | | ???????????? "" """" ######"####?????????? | | ???????????? " ###### ############# | | ?????????????? g ;h;L;#;;;############ | | ???????????????" % gHH!HHm | | ??????????????? "" HHhHHKhgLL | | ???????????????""" % %%g ;HHgLgmW | | ??????????????"""" L ;HH################ | | ?????????? % $@ ################### | | ??????????? " m #####?????????????# | | ?????????" ""##????????????????# | | ???????????"""""" """""""##????????????????#++ | | ??????????? """""""""##????????????????# | | ?????????? """""""""""##????????????????# | | ???????????? " " " " ##????????????????# | | ???????????? ????" " " ##????????????????# | | ????????????? ??????"?"""" " ##????????????????# | | ?????????????????????? """" ##????????????????# | | ?????????????????????????" ##????????????????### | | ?????????????????????????????????????????????????? | | ?????????????????????????????????????????????????? | | ?????????????????????????????????????????????????? | | ?????????????????????????????????????????????????? | | ?????????????????????????????????????????????????? | | ?????????????????????????????????????????????????? | | ?????????????????????????????????????????????????? | | ?????????????????????????????????????????????????? | | ?????????????????????????????????????????????????? | | ?????????????????????????????????????????????????? | | ?????????????????????????????????????????????????? | | ?????????????????????????????????????????????????? | | ?????????????????????????????????????????????????? | | ?????????????????????????????????????????????????? | +----------------------------------------------------+ Best States ------------- Heat Dissipation 171 Energy Generation 79 Energy Capacity 2320 Matter Stores 300 Matter Capacity 300 Sight Range 22 Robot Scan Range 18 Terrain Scan Range 16 Terrain Scan Density 160 ECM Strength 2 Jamming Range 14 Cloak Strength 4 Power Amplification 70 Corruption Containment 8 Corruption Block 20 Armor Coverage 600 Resistance: TH 75 Resistance: EX 75 Propulsion Shielding 66 Point Defense Rating 480 Evasion (%) 75 Recoil Reduction 6 Kinecelleration 40 Offensive Hacking 48 Defensive Hacking 20 Authchip Count 1 Item Schematics ----------------- Hacking Suite | -9/Materials | Scanalyzed Mni. Grenade Launcher | -9/Materials | Scanalyzed Flight Unit | -9/Materials | Scanalyzed Shield Leg | -7/Factory | Downloaded Enh. Nuclear Core | -7/Factory | Hacked Surge Thruster | -7/Factory | Hacked Imp. Surge Thruster | -7/Factory | Hacked Plasma Cutter | -6/Factory | Hacked Adv. Cryofiber Web | -6/Extension | Hacked Adv. Hacking Suite | -4/Factory | Scanalyzed Stasis Canceller | -4/Factory | Scanalyzed Adv. Remote Datajack | -3/Research | Hacked Graphene Brace | -3/Research | Scanalyzed Robot Schematics ------------------ None Fabricated ------------ Hacking Suite | x1 | -7/Factory | Authchip Shield Leg | x1 | -6/Factory | Authchip Imp. Thunder Leg | x2 | -6/Factory | Preloaded Plasma Cutter | x2 | -6/Factory Adv. Hacking Suite | x1 | -3/Research | Authchip Repaired ---------- Flight Unit | 20% | -10/Materials Flight Unit | 40% | -10/Materials Flight Unit | 60% | -9/Materials Katana | 24% | -6/Factory Electron Diverter | 18% | -3/Research Stasis Canceller | 23% | -3/Research Alien Tech Used ----------------- Dimensional Node Initializer High-powered Transdimensional Reconstructor Core Cannon Achievements -------------- None Challenges ------------ None Game ------ Seed NullDispersionMeganuke Manual? 0 Play Time 06:21:39 Cumulative 418.7 hours Start 2025.08.05 @ 13:04:10 End 2025.08.05 @ 20:40:18 Sessions 5 Manual Loads 0 Difficulty Rogue Special Mode None Game No. 190 Rogue 190 Adventurer 0 Explorer 0 Win Type 7 Total 30 Types 12/2/5/2/5/1/0/2/0/1 Lore% 93 Gallery% 84 Achievement% 78 Wizard Run 0 Options --------- Layout 1 ASCII 0 Keyboard 0 Movement Numpad Keybinds 0 Fullscreen 1 Font 24/Smallcaps Map View 50x35 Zoom Use 0% Tactical HUD 1 Map Filters NONE Filters NONE Steam 1 RUN: d6d23cd4-9e24-495b-91f4-c5adecb57000